Workbook

Sheet Coon Rapids (hidden)
A1: Coon Rapids
A3: Vault
B4: Name | C4: Score 1 | D4: Score 2 | E4: Average | F4: Team
A5: 1 | E5: =(D5+C5)/2 -> 0 | F5: =$A$1 -> Coon Rapids
A6: 2 | E6: =(D6+C6)/2 -> 0 | F6: =$A$1 -> Coon Rapids
A7: 3 | E7: =(D7+C7)/2 -> 0 | F7: =$A$1 -> Coon Rapids
A8: 4 | E8: =(D8+C8)/2 -> 0 | F8: =$A$1 -> Coon Rapids
A9: 5 | E9: =(D9+C9)/2 -> 0 | F9: =$A$1 -> Coon Rapids
D10: Team Vault | E10: =(SUM(E9+E8+E7+E6+E5)-MIN(E5:E9)) -> 0
A12: Bars
B13: Name | C13: Score 1 | D13: Score 2 | E13: Average
A14: 1 | E14: =(D14+C14)/2 -> 0 | F14: =$A$1 -> Coon Rapids
A15: 2 | E15: =(D15+C15)/2 -> 0 | F15: =$A$1 -> Coon Rapids
A16: 3 | E16: =(D16+C16)/2 -> 0 | F16: =$A$1 -> Coon Rapids
A17: 4 | E17: =(D17+C17)/2 -> 0 | F17: =$A$1 -> Coon Rapids
A18: 5 | E18: =(D18+C18)/2 -> 0 | F18: =$A$1 -> Coon Rapids
D19: Team Bars | E19: =(SUM(E18+E17+E16+E15+E14)-MIN(E14:E18)) -> 0
A21: Beam
B22: Name | C22: Score 1 | D22: Score 2 | E22: Average
A23: 1 | E23: =(D23+C23)/2 -> 0 | F23: =$A$1 -> Coon Rapids
A24: 2 | E24: =(D24+C24)/2 -> 0 | F24: =$A$1 -> Coon Rapids
A25: 3 | E25: =(D25+C25)/2 -> 0 | F25: =$A$1 -> Coon Rapids
A26: 4 | E26: =(D26+C26)/2 -> 0 | F26: =$A$1 -> Coon Rapids
A27: 5 | E27: =(D27+C27)/2 -> 0 | F27: =$A$1 -> Coon Rapids
D28: Team Beam | E28: =(SUM(E27+E26+E25+E24+E23)-MIN(E23:E27)) -> 0
A30: Floor
B31: Name | C31: Score 1 | D31: Score 2 | E31: Average
A32: 1 | E32: =(D32+C32)/2 -> 0 | F32: =$A$1 -> Coon Rapids
A33: 2 | E33: =(D33+C33)/2 -> 0 | F33: =$A$1 -> Coon Rapids
A34: 3 | E34: =(D34+C34)/2 -> 0 | F34: =$A$1 -> Coon Rapids
A35: 4 | E35: =(D35+C35)/2 -> 0 | F35: =$A$1 -> Coon Rapids
A36: 5 | E36: =(D36+C36)/2 -> 0 | F36: =$A$1 -> Coon Rapids
D37: Team Floor | E37: =(SUM(E36+E35+E34+E33+E32)-MIN(E32:E36)) -> 0
D39: Team Total | E39: =SUM(E37+E28+E19+E10) -> 0 | F39: =$A$1 -> Coon Rapids

Sheet START HERE
A1: GYMNASCORE-V (v2.0)
A2: Varsity Gymnastics Meet Scoring Software
A3: CREATED BY: Janelle Borgen, 612-860-9987
A5: PRIOR TO MEET START
A7: Save the File with the meet name
A8: Save the file with the meet name by selecting the file drop down menu and clicking on "save as"
A10: Selecting Meet Size
A11: Select the number of teams competing (2-16) by clicking on a number below
A17: The computer will prompt to delete sheets depending on how many teams you select.
A18: Select "delete" to continue
A20: TO SET UP MEET INFORMATION
A21: Please enter the name of the meet and the date in the boxes below
A22: St. Paul Varsity Competition | B22: Name of Meet
A23: Feb. 6th, 2019 | B23: Date of Meet
A26: TO SET UP TEAMS
A27: Please enter team names below in boxes
A28: Highland | B28: Team 1
A29: Central | B29: Team 2
A30: Johnson | B30: Team 3
A31: Como | B31: Team 4
B32: Team 5
B33: Team 6
B34: Team 7
B35: Team 8
B36: Team 9
B37: Team 10
B38: Team 11
B39: Team 12
B40: Team 13
B41: Team 14
B42: Team 15
B43: Team 16
A45: To change the team names on the tabs at the bottom follow instructions below.
A46: Right Click on the "Team 1" tab located at the bottom of the page and select rename
A47: Type in the name of team 1 and press enter
A48: Repeat for each team
A50: To set up line ups
A51: Click on each cell to enter the gymnasts name
A52: When typing in the names make sure they are exact and pay attention to case
A53: Enter the names of the all-around competitors by typing in the appropriate cells
A54: If "Check Name" appears in a cell, double check the spelling for each event
A57: DURING THE MEET
A59: Entering Scores
A60: First you must click on the teams tab at the bottom
A61: Locate the event and the gymnasts name in the line-up.
A62: To enter scores, just click on the cell and type in the score
A63: Only enter values for Score 1 and Score 2. The program will calculate the average automatically.
A65: Save Frequently
A66: Make sure to save the file frequently by either pressing "CTRL" and "s" simultaneously
A67: or using the file drop down menu
A69: Calculating Team Score
A70: In the Varisty version of the software, the team score is calculated automatically.
A72: Calculating Places for events, All-around and Team
A73: Select the event tab corresponding to the event desired
A74: Click on the "calculate places" box on the right of the scores
A75: Note: If any changes are made to scores on team sheets,
A76: this function will have to be repeated for accurate placings.
A78: Printing Results
A79: Select the page you want to print and
A80: either select print from the drop down "file" menu or click the printer icon at the top.
A82: Reminders
A83: Remember to save the file often by pressing the "ctrl" and "s" keys simultaneously
A84: Remember NEVER SAVE OVER THE MASTER .xlt FILE, always save each meet with a new name
A86: Finding Sheets
A87: Use the arrows at the bottom left of the screen to navigate to sheets not shown
A89: Abbreviations
A90: V1 = Vault 1, V2 = Vault 2
A92: Contact Information
A93: With questions contact Janelle Borgen at 612-860-9987

Sheet Highland
C1: ='START HERE'!A28 -> Highland
C2: ='START HERE'!A22 -> St. Paul Varsity Competition
C3: ='START HERE'!A23 -> Feb. 6th, 2019
I5: VAULT
A7: Team | E7: Name | G7: Chief Judge | I7: Acting Judge | K7: Average | M7: Event Score | O7: Neutral Ded.
A8: =$C$1 -> Highland | C8: 1 | E8: Lili Boyd | F8: V1 | G8: 8.1 | I8: 8.1 | K8: =(I8+G8)/2-O8 -> 8.1 | M8: =IF(K8>K9,K8,K9) -> 8.2
F9: V2 | G9: 8.2 | I9: 8.2 | K9: 8.2
A10: =$C$1 -> Highland | C10: 2 | E10: Mya Bishop | F10: V1 | G10: 8.2 | I10: 8.2 | K10: 8.2 | M10: =IF(K10>K11,K10,K11) -> 8.4
F11: V2 | G11: 8.4 | I11: 8.4 | K11: 8.4
A12: =$C$1 -> Highland | C12: 3 | E12: Lia Wallace | F12: V1 | G12: 8.35 | I12: 8.35 | K12: 8.35 | M12: =IF(K12>K13,K12,K13) -> 8.7
F13: V2 | G13: 8.7 | I13: 8.7 | K13: 8.7
A14: =$C$1 -> Highland | C14: 4 | E14: India David | F14: V1 | G14: 8.4 | I14: 8.4 | K14: 8.4 | M14: =IF(K14>K15,K14,K15) -> 8.55
F15: V2 | G15: 8.55 | I15: 8.55 | K15: 8.55
C16: 5 | E16: Lucy Lipscomb | F16: V1 | G16: 9.6 | I16: 9.6 | K16: 9.6 | M16: =IF(K16>K17,K16,K17) -> 9.6
A17: =$C$1 -> Highland | F17: V2 | G17: 9.6 | I17: 9.6 | K17: 9.6
K19: Total | M19: =(SUM(M8,M10,M12,M14,M16)-MIN(M8:M17)) -> 35.25
I21: BARS
E22: Name | G22: Chief Judge | I22: Acting Judge | K22: Event Score | M22: Neutral Ded.
A23: =$C$1 -> Highland | C23: 1 | E23: Annika Wetzel | G23: 7.1 | I23: 7.1 | K23: =(I23+G23)/2-M23 -> 7.1
A24: =$C$1 -> Highland | C24: 2 | E24: India David | G24: 8.2 | I24: 8.2 | K24: =(I24+G24)/2-M24 -> 8.2
A25: =$C$1 -> Highland | C25: 3 | E25: Lili Boyd | G25: 7.2 | I25: 7.2 | K25: =(I25+G25)/2-M25 -> 7.2
A26: =$C$1 -> Highland | C26: 4 | E26: Lucy Lipscomb | G26: 8.45 | I26: 8.45 | K26: =(I26+G26)/2-M26 -> 8.45
A27: =$C$1 -> Highland | C27: 5 | E27: Lia Wallace | G27: 8.5 | I27: 8.5 | K27: =(I27+G27)/2-M27 -> 8.5
I29: Total | K29: =(SUM(K27+K26+K25+K24+K23)-MIN(K23:K27)) -> 32.35
I31: BEAM
E32: Name | G32: Chief Judge | I32: Acting Judge | K32: Event Score | M32: Neutral Ded.
A33: =$C$1 -> Highland | C33: 1 | E33: Kate Paulson | G33: 8.2 | I33: 8.2 | K33: =(I33+G33)/2-M33 -> 8.2
A34: =$C$1 -> Highland | C34: 2 | E34: Lili Boyd | G34: 8.35 | I34: 8.35 | K34: =(I34+G34)/2-M34 -> 8.35
A35: =$C$1 -> Highland | C35: 3 | E35: India David | G35: 7.65 | I35: 7.65 | K35: =(I35+G35)/2-M35 -> 7.65
A36: =$C$1 -> Highland | C36: 4 | E36: Lia Wallace | G36: 8 | I36: 8 | K36: =(I36+G36)/2-M36 -> 8
A37: =$C$1 -> Highland | C37: 5 | E37: Lucy Lipscomb | G37: 9 | I37: 9 | K37: =(I37+G37)/2-M37 -> 9
I39: Total | K39: =(SUM(K37+K36+K35+K34+K33)-MIN(K33:K37)) -> 33.55
I41: FLOOR
E42: Name | G42: Chief Judge | I42: Acting Judge | K42: Event Score | M42: Neutral Ded.
A43: =$C$1 -> Highland | C43: 1 | E43: Annika Wetzel | G43: 8.3 | I43: 8.3 | K43: =(I43+G43)/2-M43 -> 8.3
A44: =$C$1 -> Highland | C44: 2 | E44: Lili Boyd | G44: 8.25 | I44: 8.25 | K44: =(I44+G44)/2-M44 -> 8.25
A45: =$C$1 -> Highland | C45: 3 | E45: India David | G45: 7.9 | I45: 7.9 | K45: =(I45+G45)/2-M45 -> 7.9
A46: =$C$1 -> Highland | C46: 4 | E46: Lia Wallace | G46: 9.4 | I46: 9.4 | K46: =(I46+G46)/2-M46 -> 9.4
A47: =$C$1 -> Highland | C47: 5 | E47: Lucy Lipscomb | G47: 9.45 | I47: 9.45 | K47: =(I47+G47)/2-M47 -> 9.45
I49: Total | K49: =(SUM(K47+K46+K45+K44+K43)-MIN(K43:K47)) -> 35.4
A51: =$C$1 -> Highland | G51: Team Total | K51: =SUM(K49+K39+K29+M19) -> 136.55
I53: ALL AROUND
E54: Name | G54: Vault | I54: Bars | K54: Beam | M54: Floor | O54: Total | Q54: Tie Breaker Event
A55: =$C$1 -> Highland | C55: 1 | E55: Lili Boyd | G55: =IF(E55=$E$8,$M$8,IF($E55=$E$10,$M$10,IF($E55=$E$12,$M$12,IF($E55=$E$14,$M$14,IF($E55=$E$16,$M$16,"check name spelling"))))) -> 8.2 | I55: =IF($E55=$E$23,$K$23,IF($E55=$E$24,$K$24,IF($E55=$E$25,$K$25,IF($E55=$E$26,$K$26,IF($E55=$E$27,$K$27,"check name spelling"))))) -> 7.2 | K55: =IF($E55=$E$33,$K$33,IF($E55=$E$34,$K$34,IF($E55=$E$35,$K$35,IF($E55=$E$36,$K$36,IF($E55=$E$37,$K$37,"check name spelling"))))) -> 8.35 | M55: =IF($E55=$E$43,$K$43,IF($E55=$E$44,$K$44,IF($E55=$E$45,$K$45,IF($E55=$E$46,$K$46,IF($E55=$E$47,$K$47,"check name spelling"))))) -> 8.25 | O55: =IF($G55="check name",0,IF($I55="check name",0,IF($K55="check name",0,IF($M55="check name",0,SUM(G55:M55))))) -> 32
A56: =$C$1 -> Highland | C56: 2 | E56: India David | G56: =IF(E56=$E$8,$M$8,IF($E56=$E$10,$M$10,IF($E56=$E$12,$M$12,IF($E56=$E$14,$M$14,IF($E56=$E$16,$M$16,"check name spelling"))))) -> 8.55 | I56: =IF($E56=$E$23,$K$23,IF($E56=$E$24,$K$24,IF($E56=$E$25,$K$25,IF($E56=$E$26,$K$26,IF($E56=$E$27,$K$27,"check name spelling"))))) -> 8.2 | K56: =IF($E56=$E$33,$K$33,IF($E56=$E$34,$K$34,IF($E56=$E$35,$K$35,IF($E56=$E$36,$K$36,IF($E56=$E$37,$K$37,"check name spelling"))))) -> 7.65 | M56: =IF($E56=$E$43,$K$43,IF($E56=$E$44,$K$44,IF($E56=$E$45,$K$45,IF($E56=$E$46,$K$46,IF($E56=$E$47,$K$47,"check name spelling"))))) -> 7.9 | O56: =IF($G56="check name",0,IF($I56="check name",0,IF($K56="check name",0,IF($M56="check name",0,SUM(G56:M56))))) -> 32.3 | T56: VT
A57: =$C$1 -> Highland | C57: 3 | E57: Lia Wallace | G57: =IF(E57=$E$8,$M$8,IF($E57=$E$10,$M$10,IF($E57=$E$12,$M$12,IF($E57=$E$14,$M$14,IF($E57=$E$16,$M$16,"check name spelling"))))) -> 8.7 | I57: =IF($E57=$E$23,$K$23,IF($E57=$E$24,$K$24,IF($E57=$E$25,$K$25,IF($E57=$E$26,$K$26,IF($E57=$E$27,$K$27,"check name spelling"))))) -> 8.5 | K57: =IF($E57=$E$33,$K$33,IF($E57=$E$34,$K$34,IF($E57=$E$35,$K$35,IF($E57=$E$36,$K$36,IF($E57=$E$37,$K$37,"check name spelling"))))) -> 8 | M57: =IF($E57=$E$43,$K$43,IF($E57=$E$44,$K$44,IF($E57=$E$45,$K$45,IF($E57=$E$46,$K$46,IF($E57=$E$47,$K$47,"check name spelling"))))) -> 9.4 | O57: =IF($G57="check name",0,IF($I57="check name",0,IF($K57="check name",0,IF($M57="check name",0,SUM(G57:M57))))) -> 34.6 | T57: BR
A58: =$C$1 -> Highland | C58: 4 | E58: Lucy Lipscomb | G58: =IF(E58=$E$8,$M$8,IF($E58=$E$10,$M$10,IF($E58=$E$12,$M$12,IF($E58=$E$14,$M$14,IF($E58=$E$16,$M$16,"check name spelling"))))) -> 9.6 | I58: =IF($E58=$E$23,$K$23,IF($E58=$E$24,$K$24,IF($E58=$E$25,$K$25,IF($E58=$E$26,$K$26,IF($E58=$E$27,$K$27,"check name spelling"))))) -> 8.45 | K58: =IF($E58=$E$33,$K$33,IF($E58=$E$34,$K$34,IF($E58=$E$35,$K$35,IF($E58=$E$36,$K$36,IF($E58=$E$37,$K$37,"check name spelling"))))) -> 9 | M58: =IF($E58=$E$43,$K$43,IF($E58=$E$44,$K$44,IF($E58=$E$45,$K$45,IF($E58=$E$46,$K$46,IF($E58=$E$47,$K$47,"check name spelling"))))) -> 9.45 | O58: =IF($G58="check name",0,IF($I58="check name",0,IF($K58="check name",0,IF($M58="check name",0,SUM(G58:M58))))) -> 36.5 | T58: BB
A59: =$C$1 -> Highland | C59: 5 | G59: =IF(E59=$E$8,$M$8,IF($E59=$E$10,$M$10,IF($E59=$E$12,$M$12,IF($E59=$E$14,$M$14,IF($E59=$E$16,$M$16,"check name spelling"))))) -> check name spelling | I59: =IF($E59=$E$23,$K$23,IF($E59=$E$24,$K$24,IF($E59=$E$25,$K$25,IF($E59=$E$26,$K$26,IF($E59=$E$27,$K$27,"check name spelling"))))) -> check name spelling | K59: =IF($E59=$E$33,$K$33,IF($E59=$E$34,$K$34,IF($E59=$E$35,$K$35,IF($E59=$E$36,$K$36,IF($E59=$E$37,$K$37,"check name spelling"))))) -> check name spelling | M59: =IF($E59=$E$43,$K$43,IF($E59=$E$44,$K$44,IF($E59=$E$45,$K$45,IF($E59=$E$46,$K$46,IF($E59=$E$47,$K$47,"check name spelling"))))) -> check name spelling | O59: =IF($G59="check name",0,IF($I59="check name",0,IF($K59="check name",0,IF($M59="check name",0,SUM(G59:M59))))) -> 0 | T59: FL

Sheet Central
C1: ='START HERE'!A29 -> Central
C2: ='START HERE'!A22 -> St. Paul Varsity Competition
C3: ='START HERE'!A23 -> Feb. 6th, 2019
I5: VAULT
A7: Team | E7: Name | G7: Chief Judge | I7: Acting Judge | K7: Average | M7: Event Score | O7: Neutral Ded.
A8: =$C$1 -> Central | C8: 1 | E8: Maddie Griggs | F8: V1 | G8: 8 | I8: 8 | K8: =(I8+G8)/2-O8 -> 8 | M8: =IF(K8>K9,K8,K9) -> 8.1
F9: V2 | G9: 8.1 | I9: 8.1 | K9: 8.1
A10: =$C$1 -> Central | C10: 2 | E10: Sylvie Chaput | F10: V1 | G10: 8.45 | I10: 8.45 | K10: 8.45 | M10: =IF(K10>K11,K10,K11) -> 8.45
F11: V2 | G11: 8.05 | I11: 8.05 | K11: 8.05
A12: =$C$1 -> Central | C12: 3 | E12: Eden Hunt | F12: V1 | G12: 8.2 | I12: 8.2 | K12: 8.2 | M12: =IF(K12>K13,K12,K13) -> 8.2
F13: V2 | G13: 7.95 | I13: 7.95 | K13: 7.95
A14: =$C$1 -> Central | C14: 4 | E14: Cali Rivera | F14: V1 | G14: 8.3 | I14: 8.3 | K14: 8.3 | M14: =IF(K14>K15,K14,K15) -> 8.35
F15: V2 | G15: 8.35 | I15: 8.35 | K15: 8.35
C16: 5 | E16: Saskia Eberman | F16: V1 | G16: 8.2 | I16: 8.2 | K16: 8.2 | M16: =IF(K16>K17,K16,K17) -> 8.2
A17: =$C$1 -> Central | F17: V2 | G17: 7.75 | I17: 7.75 | K17: 7.75
K19: Total | M19: =(SUM(M8,M10,M12,M14,M16)-MIN(M8:M17)) -> 33.2
I21: BARS
E22: Name | G22: Chief Judge | I22: Acting Judge | K22: Event Score | M22: Neutral Ded.
A23: =$C$1 -> Central | C23: 1 | E23: Maddie Griggs | G23: 4.75 | I23: 4.75 | K23: =(I23+G23)/2-M23 -> 4.75
A24: =$C$1 -> Central | C24: 2 | E24: Lia Guider | G24: 6.8 | I24: 6.8 | K24: =(I24+G24)/2-M24 -> 6.8
A25: =$C$1 -> Central | C25: 3 | E25: Cali Rivera | G25: 6.65 | I25: 6.65 | K25: =(I25+G25)/2-M25 -> 6.65
A26: =$C$1 -> Central | C26: 4 | E26: Maddie Arnet | G26: 6.4 | I26: 6.4 | K26: =(I26+G26)/2-M26 -> 6.4
A27: =$C$1 -> Central | C27: 5 | E27: Eden Hunt | G27: 7.5 | I27: 7.5 | K27: =(I27+G27)/2-M27 -> 7.5
I29: Total | K29: =(SUM(K27+K26+K25+K24+K23)-MIN(K23:K27)) -> 27.35
I31: BEAM
E32: Name | G32: Chief Judge | I32: Acting Judge | K32: Event Score | M32: Neutral Ded.
A33: =$C$1 -> Central | C33: 1 | E33: Sylvie Chaput | G33: 7.35 | I33: 7.35 | K33: =(I33+G33)/2-M33 -> 7.35
A34: =$C$1 -> Central | C34: 2 | E34: Cali Rivera | G34: 6.85 | I34: 6.85 | K34: =(I34+G34)/2-M34 -> 6.85
A35: =$C$1 -> Central | C35: 3 | E35: Maddie Griggs | G35: 7.35 | I35: 7.35 | K35: =(I35+G35)/2-M35 -> 7.35
A36: =$C$1 -> Central | C36: 4 | E36: Gaomong Xiong | G36: 7.3 | I36: 7.3 | K36: =(I36+G36)/2-M36 -> 7.3
A37: =$C$1 -> Central | C37: 5 | E37: Eden Hunt | G37: 7.05 | I37: 7.05 | K37: =(I37+G37)/2-M37 -> 7.05
I39: Total | K39: =(SUM(K37+K36+K35+K34+K33)-MIN(K33:K37)) -> 29.05
I41: FLOOR
E42: Name | G42: Chief Judge | I42: Acting Judge | K42: Event Score | M42: Neutral Ded.
A43: =$C$1 -> Central | C43: 1 | E43: Saskia Eberman | G43: 8.1 | I43: 8.1 | K43: =(I43+G43)/2-M43 -> 8.1
A44: =$C$1 -> Central | C44: 2 | E44: Sylvie Chaput | G44: 7.7 | I44: 7.7 | K44: =(I44+G44)/2-M44 -> 7.7
A45: =$C$1 -> Central | C45: 3 | E45: Maddie Arnet | G45: 7.9 | I45: 7.9 | K45: =(I45+G45)/2-M45 -> 7.9
A46: =$C$1 -> Central | C46: 4 | E46: Cali Rivera | G46: 8.3 | I46: 8.3 | K46: =(I46+G46)/2-M46 -> 8.3
A47: =$C$1 -> Central | C47: 5 | E47: Eden Hunt | G47: 8.9 | I47: 8.9 | K47: =(I47+G47)/2-M47 -> 8.9
I49: Total | K49: =(SUM(K47+K46+K45+K44+K43)-MIN(K43:K47)) -> 33.2
A51: =$C$1 -> Central | G51: Team Total | K51: =SUM(K49+K39+K29+M19) -> 122.8
I53: ALL AROUND
E54: Name | G54: Vault | I54: Bars | K54: Beam | M54: Floor | O54: Total | Q54: Tie Breaker Event
A55: =$C$1 -> Central | C55: 1 | E55: Cali Rivera | G55: =IF(E55=$E$8,$M$8,IF($E55=$E$10,$M$10,IF($E55=$E$12,$M$12,IF($E55=$E$14,$M$14,IF($E55=$E$16,$M$16,"check name spelling"))))) -> 8.35 | I55: =IF($E55=$E$23,$K$23,IF($E55=$E$24,$K$24,IF($E55=$E$25,$K$25,IF($E55=$E$26,$K$26,IF($E55=$E$27,$K$27,"check name spelling"))))) -> 6.65 | K55: =IF($E55=$E$33,$K$33,IF($E55=$E$34,$K$34,IF($E55=$E$35,$K$35,IF($E55=$E$36,$K$36,IF($E55=$E$37,$K$37,"check name spelling"))))) -> 6.85 | M55: =IF($E55=$E$43,$K$43,IF($E55=$E$44,$K$44,IF($E55=$E$45,$K$45,IF($E55=$E$46,$K$46,IF($E55=$E$47,$K$47,"check name spelling"))))) -> 8.3 | O55: =IF($G55="check name",0,IF($I55="check name",0,IF($K55="check name",0,IF($M55="check name",0,SUM(G55:M55))))) -> 30.15
A56: =$C$1 -> Central | C56: 2 | E56: Eden Hunt | G56: =IF(E56=$E$8,$M$8,IF($E56=$E$10,$M$10,IF($E56=$E$12,$M$12,IF($E56=$E$14,$M$14,IF($E56=$E$16,$M$16,"check name spelling"))))) -> 8.2 | I56: =IF($E56=$E$23,$K$23,IF($E56=$E$24,$K$24,IF($E56=$E$25,$K$25,IF($E56=$E$26,$K$26,IF($E56=$E$27,$K$27,"check name spelling"))))) -> 7.5 | K56: =IF($E56=$E$33,$K$33,IF($E56=$E$34,$K$34,IF($E56=$E$35,$K$35,IF($E56=$E$36,$K$36,IF($E56=$E$37,$K$37,"check name spelling"))))) -> 7.05 | M56: =IF($E56=$E$43,$K$43,IF($E56=$E$44,$K$44,IF($E56=$E$45,$K$45,IF($E56=$E$46,$K$46,IF($E56=$E$47,$K$47,"check name spelling"))))) -> 8.9 | O56: =IF($G56="check name",0,IF($I56="check name",0,IF($K56="check name",0,IF($M56="check name",0,SUM(G56:M56))))) -> 31.65 | T56: VT
A57: =$C$1 -> Central | C57: 3 | G57: =IF(E57=$E$8,$M$8,IF($E57=$E$10,$M$10,IF($E57=$E$12,$M$12,IF($E57=$E$14,$M$14,IF($E57=$E$16,$M$16,"check name spelling"))))) -> check name spelling | I57: =IF($E57=$E$23,$K$23,IF($E57=$E$24,$K$24,IF($E57=$E$25,$K$25,IF($E57=$E$26,$K$26,IF($E57=$E$27,$K$27,"check name spelling"))))) -> check name spelling | K57: =IF($E57=$E$33,$K$33,IF($E57=$E$34,$K$34,IF($E57=$E$35,$K$35,IF($E57=$E$36,$K$36,IF($E57=$E$37,$K$37,"check name spelling"))))) -> check name spelling | M57: =IF($E57=$E$43,$K$43,IF($E57=$E$44,$K$44,IF($E57=$E$45,$K$45,IF($E57=$E$46,$K$46,IF($E57=$E$47,$K$47,"check name spelling"))))) -> check name spelling | O57: =IF($G57="check name",0,IF($I57="check name",0,IF($K57="check name",0,IF($M57="check name",0,SUM(G57:M57))))) -> 0 | T57: BR
A58: =$C$1 -> Central | C58: 4 | G58: =IF(E58=$E$8,$M$8,IF($E58=$E$10,$M$10,IF($E58=$E$12,$M$12,IF($E58=$E$14,$M$14,IF($E58=$E$16,$M$16,"check name spelling"))))) -> check name spelling | I58: =IF($E58=$E$23,$K$23,IF($E58=$E$24,$K$24,IF($E58=$E$25,$K$25,IF($E58=$E$26,$K$26,IF($E58=$E$27,$K$27,"check name spelling"))))) -> check name spelling | K58: =IF($E58=$E$33,$K$33,IF($E58=$E$34,$K$34,IF($E58=$E$35,$K$35,IF($E58=$E$36,$K$36,IF($E58=$E$37,$K$37,"check name spelling"))))) -> check name spelling | M58: =IF($E58=$E$43,$K$43,IF($E58=$E$44,$K$44,IF($E58=$E$45,$K$45,IF($E58=$E$46,$K$46,IF($E58=$E$47,$K$47,"check name spelling"))))) -> check name spelling | O58: =IF($G58="check name",0,IF($I58="check name",0,IF($K58="check name",0,IF($M58="check name",0,SUM(G58:M58))))) -> 0 | T58: BB
A59: =$C$1 -> Central | C59: 5 | G59: =IF(E59=$E$8,$M$8,IF($E59=$E$10,$M$10,IF($E59=$E$12,$M$12,IF($E59=$E$14,$M$14,IF($E59=$E$16,$M$16,"check name spelling"))))) -> check name spelling | I59: =IF($E59=$E$23,$K$23,IF($E59=$E$24,$K$24,IF($E59=$E$25,$K$25,IF($E59=$E$26,$K$26,IF($E59=$E$27,$K$27,"check name spelling"))))) -> check name spelling | K59: =IF($E59=$E$33,$K$33,IF($E59=$E$34,$K$34,IF($E59=$E$35,$K$35,IF($E59=$E$36,$K$36,IF($E59=$E$37,$K$37,"check name spelling"))))) -> check name spelling | M59: =IF($E59=$E$43,$K$43,IF($E59=$E$44,$K$44,IF($E59=$E$45,$K$45,IF($E59=$E$46,$K$46,IF($E59=$E$47,$K$47,"check name spelling"))))) -> check name spelling | O59: =IF($G59="check name",0,IF($I59="check name",0,IF($K59="check name",0,IF($M59="check name",0,SUM(G59:M59))))) -> 0 | T59: FL

Sheet Johnson
C1: ='START HERE'!A30 -> Johnson
C2: ='START HERE'!A22 -> St. Paul Varsity Competition
C3: ='START HERE'!A23 -> Feb. 6th, 2019
I5: VAULT
A7: Team | E7: Name | G7: Chief Judge | I7: Acting Judge | K7: Average | M7: Event Score | O7: Neutral Ded.
A8: =$C$1 -> Johnson | C8: 1 | E8: Janpen Thao | F8: V1 | G8: 6.9 | I8: 6.9 | K8: =(I8+G8)/2-O8 -> 6.9 | M8: =IF(K8>K9,K8,K9) -> 6.9
F9: V2 | G9: 6.5 | I9: 6.5 | K9: 6.5
A10: =$C$1 -> Johnson | C10: 2 | E10: Jee Xiong | F10: V1 | G10: 6.6 | I10: 6.6 | K10: 6.6 | M10: =IF(K10>K11,K10,K11) -> 6.6
F11: V2 | G11: 6.1 | I11: 6.1 | K11: 6.1
A12: =$C$1 -> Johnson | C12: 3 | E12: Mariana Urbina | F12: V1 | G12: 6.7 | I12: 6.7 | K12: 6.7 | M12: =IF(K12>K13,K12,K13) -> 6.85
F13: V2 | G13: 6.85 | I13: 6.85 | K13: 6.85
A14: =$C$1 -> Johnson | C14: 4 | E14: Txiab Xiong | F14: V1 | G14: 6.5 | I14: 6.5 | K14: 6.5 | M14: =IF(K14>K15,K14,K15) -> 6.5
F15: V2 | G15: 6.5 | I15: 6.5 | K15: 6.5
C16: 5 | E16: De'Quaia Crenshaw | F16: V1 | G16: 6.6 | I16: 6.6 | K16: 6.6 | M16: =IF(K16>K17,K16,K17) -> 6.8
A17: =$C$1 -> Johnson | F17: V2 | G17: 6.8 | I17: 6.8 | K17: 6.8
K19: Total | M19: =(SUM(M8,M10,M12,M14,M16)-MIN(M8:M17)) -> 27.15
I21: BARS
E22: Name | G22: Chief Judge | I22: Acting Judge | K22: Event Score | M22: Neutral Ded.
A23: =$C$1 -> Johnson | C23: 1 | E23: Jee Xiong | G23: 3.7 | I23: 3.7 | K23: =(I23+G23)/2-M23 -> 3.7
A24: =$C$1 -> Johnson | C24: 2 | E24: Txiab Xiong | G24: 3.85 | I24: 3.85 | K24: =(I24+G24)/2-M24 -> 3.85
A25: =$C$1 -> Johnson | C25: 3 | E25: Mariana Urbina | G25: 4.1 | I25: 4.1 | K25: =(I25+G25)/2-M25 -> 4.1
A26: =$C$1 -> Johnson | C26: 4 | E26: Nevaeh Sangster-Lamb | G26: 3.9 | I26: 3.9 | K26: =(I26+G26)/2-M26 -> 3.9
A27: =$C$1 -> Johnson | C27: 5 | E27: De'Quaia Crenshaw | G27: 6.9 | I27: 6.9 | K27: =(I27+G27)/2-M27 -> 6.9
I29: Total | K29: =(SUM(K27+K26+K25+K24+K23)-MIN(K23:K27)) -> 18.75
I31: BEAM
E32: Name | G32: Chief Judge | I32: Acting Judge | K32: Event Score | M32: Neutral Ded.
A33: =$C$1 -> Johnson | C33: 1 | E33: Tahnia Townsend | G33: 4 | I33: 4 | K33: =(I33+G33)/2-M33 -> 4
A34: =$C$1 -> Johnson | C34: 2 | E34: Mariana Urbina | G34: 4.4 | I34: 4.4 | K34: =(I34+G34)/2-M34 -> 4.4
A35: =$C$1 -> Johnson | C35: 3 | E35: Txiab Xiong | G35: 5.1 | I35: 5.1 | K35: =(I35+G35)/2-M35 -> 5.1
A36: =$C$1 -> Johnson | C36: 4 | E36: Navaeh Sangster-Lamb | G36: 5.75 | I36: 5.75 | K36: =(I36+G36)/2-M36 -> 5.75
A37: =$C$1 -> Johnson | C37: 5 | E37: De'Quaia Crenshaw | G37: 4.7 | I37: 4.7 | K37: =(I37+G37)/2-M37 -> 4.7
I39: Total | K39: =(SUM(K37+K36+K35+K34+K33)-MIN(K33:K37)) -> 19.95
I41: FLOOR
E42: Name | G42: Chief Judge | I42: Acting Judge | K42: Event Score | M42: Neutral Ded.
A43: =$C$1 -> Johnson | C43: 1 | E43: Nevaeh Sangster-Lamb | G43: 6 | I43: 6 | K43: =(I43+G43)/2-M43 -> 6
A44: =$C$1 -> Johnson | C44: 2 | E44: Txiab Xiong | G44: 6.4 | I44: 6.4 | K44: =(I44+G44)/2-M44 -> 6.4
A45: =$C$1 -> Johnson | C45: 3 | E45: Mariana Urbina | G45: 6.3 | I45: 6.3 | K45: =(I45+G45)/2-M45 -> 6.3
A46: =$C$1 -> Johnson | C46: 4 | E46: Tahnia Townsend | G46: 7.2 | I46: 7.2 | K46: =(I46+G46)/2-M46 -> 7.2
A47: =$C$1 -> Johnson | C47: 5 | E47: De'Quaia Crenshaw | G47: 7 | I47: 7 | K47: =(I47+G47)/2-M47 -> 7
I49: Total | K49: =(SUM(K47+K46+K45+K44+K43)-MIN(K43:K47)) -> 26.9
A51: =$C$1 -> Johnson | G51: Team Total | K51: =SUM(K49+K39+K29+M19) -> 92.75
I53: ALL AROUND
E54: Name | G54: Vault | I54: Bars | K54: Beam | M54: Floor | O54: Total | Q54: Tie Breaker Event
A55: =$C$1 -> Johnson | C55: 1 | E55: Mariana Urbina | G55: =IF(E55=$E$8,$M$8,IF($E55=$E$10,$M$10,IF($E55=$E$12,$M$12,IF($E55=$E$14,$M$14,IF($E55=$E$16,$M$16,"check name spelling"))))) -> 6.85 | I55: =IF($E55=$E$23,$K$23,IF($E55=$E$24,$K$24,IF($E55=$E$25,$K$25,IF($E55=$E$26,$K$26,IF($E55=$E$27,$K$27,"check name spelling"))))) -> 4.1 | K55: =IF($E55=$E$33,$K$33,IF($E55=$E$34,$K$34,IF($E55=$E$35,$K$35,IF($E55=$E$36,$K$36,IF($E55=$E$37,$K$37,"check name spelling"))))) -> 4.4 | M55: =IF($E55=$E$43,$K$43,IF($E55=$E$44,$K$44,IF($E55=$E$45,$K$45,IF($E55=$E$46,$K$46,IF($E55=$E$47,$K$47,"check name spelling"))))) -> 6.3 | O55: =IF($G55="check name",0,IF($I55="check name",0,IF($K55="check name",0,IF($M55="check name",0,SUM(G55:M55))))) -> 21.65
A56: =$C$1 -> Johnson | C56: 2 | E56: Txiab Xiong | G56: =IF(E56=$E$8,$M$8,IF($E56=$E$10,$M$10,IF($E56=$E$12,$M$12,IF($E56=$E$14,$M$14,IF($E56=$E$16,$M$16,"check name spelling"))))) -> 6.5 | I56: =IF($E56=$E$23,$K$23,IF($E56=$E$24,$K$24,IF($E56=$E$25,$K$25,IF($E56=$E$26,$K$26,IF($E56=$E$27,$K$27,"check name spelling"))))) -> 3.85 | K56: =IF($E56=$E$33,$K$33,IF($E56=$E$34,$K$34,IF($E56=$E$35,$K$35,IF($E56=$E$36,$K$36,IF($E56=$E$37,$K$37,"check name spelling"))))) -> 5.1 | M56: =IF($E56=$E$43,$K$43,IF($E56=$E$44,$K$44,IF($E56=$E$45,$K$45,IF($E56=$E$46,$K$46,IF($E56=$E$47,$K$47,"check name spelling"))))) -> 6.4 | O56: =IF($G56="check name",0,IF($I56="check name",0,IF($K56="check name",0,IF($M56="check name",0,SUM(G56:M56))))) -> 21.85 | T56: VT
A57: =$C$1 -> Johnson | C57: 3 | E57: De'Quaia Crenshaw | G57: =IF(E57=$E$8,$M$8,IF($E57=$E$10,$M$10,IF($E57=$E$12,$M$12,IF($E57=$E$14,$M$14,IF($E57=$E$16,$M$16,"check name spelling"))))) -> 6.8 | I57: =IF($E57=$E$23,$K$23,IF($E57=$E$24,$K$24,IF($E57=$E$25,$K$25,IF($E57=$E$26,$K$26,IF($E57=$E$27,$K$27,"check name spelling"))))) -> 6.9 | K57: =IF($E57=$E$33,$K$33,IF($E57=$E$34,$K$34,IF($E57=$E$35,$K$35,IF($E57=$E$36,$K$36,IF($E57=$E$37,$K$37,"check name spelling"))))) -> 4.7 | M57: =IF($E57=$E$43,$K$43,IF($E57=$E$44,$K$44,IF($E57=$E$45,$K$45,IF($E57=$E$46,$K$46,IF($E57=$E$47,$K$47,"check name spelling"))))) -> 7 | O57: =IF($G57="check name",0,IF($I57="check name",0,IF($K57="check name",0,IF($M57="check name",0,SUM(G57:M57))))) -> 25.4 | T57: BR
A58: =$C$1 -> Johnson | C58: 4 | G58: =IF(E58=$E$8,$M$8,IF($E58=$E$10,$M$10,IF($E58=$E$12,$M$12,IF($E58=$E$14,$M$14,IF($E58=$E$16,$M$16,"check name spelling"))))) -> check name spelling | I58: =IF($E58=$E$23,$K$23,IF($E58=$E$24,$K$24,IF($E58=$E$25,$K$25,IF($E58=$E$26,$K$26,IF($E58=$E$27,$K$27,"check name spelling"))))) -> check name spelling | K58: =IF($E58=$E$33,$K$33,IF($E58=$E$34,$K$34,IF($E58=$E$35,$K$35,IF($E58=$E$36,$K$36,IF($E58=$E$37,$K$37,"check name spelling"))))) -> check name spelling | M58: =IF($E58=$E$43,$K$43,IF($E58=$E$44,$K$44,IF($E58=$E$45,$K$45,IF($E58=$E$46,$K$46,IF($E58=$E$47,$K$47,"check name spelling"))))) -> check name spelling | O58: =IF($G58="check name",0,IF($I58="check name",0,IF($K58="check name",0,IF($M58="check name",0,SUM(G58:M58))))) -> 0 | T58: BB
A59: =$C$1 -> Johnson | C59: 5 | G59: =IF(E59=$E$8,$M$8,IF($E59=$E$10,$M$10,IF($E59=$E$12,$M$12,IF($E59=$E$14,$M$14,IF($E59=$E$16,$M$16,"check name spelling"))))) -> check name spelling | I59: =IF($E59=$E$23,$K$23,IF($E59=$E$24,$K$24,IF($E59=$E$25,$K$25,IF($E59=$E$26,$K$26,IF($E59=$E$27,$K$27,"check name spelling"))))) -> check name spelling | K59: =IF($E59=$E$33,$K$33,IF($E59=$E$34,$K$34,IF($E59=$E$35,$K$35,IF($E59=$E$36,$K$36,IF($E59=$E$37,$K$37,"check name spelling"))))) -> check name spelling | M59: =IF($E59=$E$43,$K$43,IF($E59=$E$44,$K$44,IF($E59=$E$45,$K$45,IF($E59=$E$46,$K$46,IF($E59=$E$47,$K$47,"check name spelling"))))) -> check name spelling | O59: =IF($G59="check name",0,IF($I59="check name",0,IF($K59="check name",0,IF($M59="check name",0,SUM(G59:M59))))) -> 0 | T59: FL

Sheet Como
C1: ='START HERE'!A31 -> Como
C2: ='START HERE'!A22 -> St. Paul Varsity Competition
C3: ='START HERE'!A23 -> Feb. 6th, 2019
I5: VAULT
A7: Team | E7: Name | G7: Chief Judge | I7: Acting Judge | K7: Average | M7: Event Score | O7: Neutral Ded.
A8: =$C$1 -> Como | C8: 1 | E8: Emma Osbourne | F8: V1 | G8: 3.8 | I8: 3.8 | K8: =(I8+G8)/2-O8 -> 3.8 | M8: =IF(K8>K9,K8,K9) -> 5.8
F9: V2 | G9: 5.8 | I9: 5.8 | K9: 5.8
A10: =$C$1 -> Como | C10: 2 | E10: Alyssa Aarthon | F10: V1 | G10: 5.1 | I10: 5.1 | K10: 5.1 | M10: =IF(K10>K11,K10,K11) -> 6.1
F11: V2 | G11: 6.1 | I11: 6.1 | K11: 6.1
A12: =$C$1 -> Como | C12: 3 | E12: Lily Klett | F12: V1 | G12: 6.35 | I12: 6.35 | K12: 6.35 | M12: =IF(K12>K13,K12,K13) -> 6.35
F13: V2 | G13: 6.2 | I13: 6.2 | K13: 6.2
A14: =$C$1 -> Como | C14: 4 | E14: Amelia Christ | F14: V1 | G14: 8.3 | I14: 8.3 | K14: 8.3 | M14: =IF(K14>K15,K14,K15) -> 8.3
F15: V2 | G15: 6.9 | I15: 6.9 | K15: 6.9
C16: 5 | F16: V1 | K16: 0 | M16: =IF(K16>K17,K16,K17) -> 0
A17: =$C$1 -> Como | F17: V2 | K17: 0
K19: Total | M19: =(SUM(M8,M10,M12,M14,M16)-MIN(M8:M17)) -> 26.55
I21: BARS
E22: Name | G22: Chief Judge | I22: Acting Judge | K22: Event Score | M22: Neutral Ded.
A23: =$C$1 -> Como | C23: 1 | E23: Emma Osbourne | G23: 2.2 | I23: 2.2 | K23: =(I23+G23)/2-M23 -> 2.2
A24: =$C$1 -> Como | C24: 2 | E24: Lily Klett | G24: 2.7 | I24: 2.7 | K24: =(I24+G24)/2-M24 -> 2.7
A25: =$C$1 -> Como | C25: 3 | E25: Alyssa Aarthon | G25: 3.3 | I25: 3.3 | K25: =(I25+G25)/2-M25 -> 3.3
A26: =$C$1 -> Como | C26: 4 | E26: Amelia Christ | G26: 6.5 | I26: 6.5 | K26: =(I26+G26)/2-M26 -> 6.5
A27: =$C$1 -> Como | C27: 5 | K27: =(I27+G27)/2-M27 -> 0
I29: Total | K29: =(SUM(K27+K26+K25+K24+K23)-MIN(K23:K27)) -> 14.7
I31: BEAM
E32: Name | G32: Chief Judge | I32: Acting Judge | K32: Event Score | M32: Neutral Ded.
A33: =$C$1 -> Como | C33: 1 | E33: Alyssa Aarthon | G33: 3 | I33: 3 | K33: =(I33+G33)/2-M33 -> 3
A34: =$C$1 -> Como | C34: 2 | E34: Minnie Her | G34: 2.3 | I34: 2.3 | K34: =(I34+G34)/2-M34 -> 2.3
A35: =$C$1 -> Como | C35: 3 | E35: Isabella Hernandez | G35: 3.6 | I35: 3.6 | K35: =(I35+G35)/2-M35 -> 3.6
A36: =$C$1 -> Como | C36: 4 | E36: Jennifer Rosos | G36: 4.9 | I36: 4.9 | K36: =(I36+G36)/2-M36 -> 4.9
A37: =$C$1 -> Como | C37: 5 | E37: Amelia Christ | G37: 7.15 | I37: 7.15 | K37: =(I37+G37)/2-M37 -> 7.15
I39: Total | K39: =(SUM(K37+K36+K35+K34+K33)-MIN(K33:K37)) -> 18.65
I41: FLOOR
E42: Name | G42: Chief Judge | I42: Acting Judge | K42: Event Score | M42: Neutral Ded.
A43: =$C$1 -> Como | C43: 1 | E43: Amelia Hernandez | G43: 4 | I43: 4 | K43: =(I43+G43)/2-M43 -> 4
A44: =$C$1 -> Como | C44: 2 | E44: Isadora McGinley Myers | G44: 5.7 | I44: 5.7 | K44: =(I44+G44)/2-M44 -> 5.7
A45: =$C$1 -> Como | C45: 3 | E45: Isabella Hernandez | G45: 4.7 | I45: 4.7 | K45: =(I45+G45)/2-M45 -> 4.7
A46: =$C$1 -> Como | C46: 4 | E46: Jennifer Rosos | G46: 5.9 | I46: 5.9 | K46: =(I46+G46)/2-M46 -> 5.9
A47: =$C$1 -> Como | C47: 5 | E47: Amelia Christ | G47: 7.6 | I47: 7.6 | K47: =(I47+G47)/2-M47 -> 7.6
I49: Total | K49: =(SUM(K47+K46+K45+K44+K43)-MIN(K43:K47)) -> 23.9
A51: =$C$1 -> Como | G51: Team Total | K51: =SUM(K49+K39+K29+M19) -> 83.8
I53: ALL AROUND
E54: Name | G54: Vault | I54: Bars | K54: Beam | M54: Floor | O54: Total | Q54: Tie Breaker Event
A55: =$C$1 -> Como | C55: 1 | E55: Amelia Christ | G55: =IF(E55=$E$8,$M$8,IF($E55=$E$10,$M$10,IF($E55=$E$12,$M$12,IF($E55=$E$14,$M$14,IF($E55=$E$16,$M$16,"check name spelling"))))) -> check name spelling | I55: =IF($E55=$E$23,$K$23,IF($E55=$E$24,$K$24,IF($E55=$E$25,$K$25,IF($E55=$E$26,$K$26,IF($E55=$E$27,$K$27,"check name spelling"))))) -> 6.5 | K55: =IF($E55=$E$33,$K$33,IF($E55=$E$34,$K$34,IF($E55=$E$35,$K$35,IF($E55=$E$36,$K$36,IF($E55=$E$37,$K$37,"check name spelling"))))) -> 7.15 | M55: =IF($E55=$E$43,$K$43,IF($E55=$E$44,$K$44,IF($E55=$E$45,$K$45,IF($E55=$E$46,$K$46,IF($E55=$E$47,$K$47,"check name spelling"))))) -> 7.6 | O55: =IF($G55="check name",0,IF($I55="check name",0,IF($K55="check name",0,IF($M55="check name",0,SUM(G55:M55))))) -> 21.25
A56: =$C$1 -> Como | C56: 2 | G56: =IF(E56=$E$8,$M$8,IF($E56=$E$10,$M$10,IF($E56=$E$12,$M$12,IF($E56=$E$14,$M$14,IF($E56=$E$16,$M$16,"check name spelling"))))) -> 0 | I56: =IF($E56=$E$23,$K$23,IF($E56=$E$24,$K$24,IF($E56=$E$25,$K$25,IF($E56=$E$26,$K$26,IF($E56=$E$27,$K$27,"check name spelling"))))) -> 0 | K56: =IF($E56=$E$33,$K$33,IF($E56=$E$34,$K$34,IF($E56=$E$35,$K$35,IF($E56=$E$36,$K$36,IF($E56=$E$37,$K$37,"check name spelling"))))) -> check name spelling | M56: =IF($E56=$E$43,$K$43,IF($E56=$E$44,$K$44,IF($E56=$E$45,$K$45,IF($E56=$E$46,$K$46,IF($E56=$E$47,$K$47,"check name spelling"))))) -> check name spelling | O56: =IF($G56="check name",0,IF($I56="check name",0,IF($K56="check name",0,IF($M56="check name",0,SUM(G56:M56))))) -> 0 | T56: VT
A57: =$C$1 -> Como | C57: 3 | G57: =IF(E57=$E$8,$M$8,IF($E57=$E$10,$M$10,IF($E57=$E$12,$M$12,IF($E57=$E$14,$M$14,IF($E57=$E$16,$M$16,"check name spelling"))))) -> 0 | I57: =IF($E57=$E$23,$K$23,IF($E57=$E$24,$K$24,IF($E57=$E$25,$K$25,IF($E57=$E$26,$K$26,IF($E57=$E$27,$K$27,"check name spelling"))))) -> 0 | K57: =IF($E57=$E$33,$K$33,IF($E57=$E$34,$K$34,IF($E57=$E$35,$K$35,IF($E57=$E$36,$K$36,IF($E57=$E$37,$K$37,"check name spelling"))))) -> check name spelling | M57: =IF($E57=$E$43,$K$43,IF($E57=$E$44,$K$44,IF($E57=$E$45,$K$45,IF($E57=$E$46,$K$46,IF($E57=$E$47,$K$47,"check name spelling"))))) -> check name spelling | O57: =IF($G57="check name",0,IF($I57="check name",0,IF($K57="check name",0,IF($M57="check name",0,SUM(G57:M57))))) -> 0 | T57: BR
A58: =$C$1 -> Como | C58: 4 | G58: =IF(E58=$E$8,$M$8,IF($E58=$E$10,$M$10,IF($E58=$E$12,$M$12,IF($E58=$E$14,$M$14,IF($E58=$E$16,$M$16,"check name spelling"))))) -> 0 | I58: =IF($E58=$E$23,$K$23,IF($E58=$E$24,$K$24,IF($E58=$E$25,$K$25,IF($E58=$E$26,$K$26,IF($E58=$E$27,$K$27,"check name spelling"))))) -> 0 | K58: =IF($E58=$E$33,$K$33,IF($E58=$E$34,$K$34,IF($E58=$E$35,$K$35,IF($E58=$E$36,$K$36,IF($E58=$E$37,$K$37,"check name spelling"))))) -> check name spelling | M58: =IF($E58=$E$43,$K$43,IF($E58=$E$44,$K$44,IF($E58=$E$45,$K$45,IF($E58=$E$46,$K$46,IF($E58=$E$47,$K$47,"check name spelling"))))) -> check name spelling | O58: =IF($G58="check name",0,IF($I58="check name",0,IF($K58="check name",0,IF($M58="check name",0,SUM(G58:M58))))) -> 0 | T58: BB
A59: =$C$1 -> Como | C59: 5 | G59: =IF(E59=$E$8,$M$8,IF($E59=$E$10,$M$10,IF($E59=$E$12,$M$12,IF($E59=$E$14,$M$14,IF($E59=$E$16,$M$16,"check name spelling"))))) -> 0 | I59: =IF($E59=$E$23,$K$23,IF($E59=$E$24,$K$24,IF($E59=$E$25,$K$25,IF($E59=$E$26,$K$26,IF($E59=$E$27,$K$27,"check name spelling"))))) -> 0 | K59: =IF($E59=$E$33,$K$33,IF($E59=$E$34,$K$34,IF($E59=$E$35,$K$35,IF($E59=$E$36,$K$36,IF($E59=$E$37,$K$37,"check name spelling"))))) -> check name spelling | M59: =IF($E59=$E$43,$K$43,IF($E59=$E$44,$K$44,IF($E59=$E$45,$K$45,IF($E59=$E$46,$K$46,IF($E59=$E$47,$K$47,"check name spelling"))))) -> check name spelling | O59: =IF($G59="check name",0,IF($I59="check name",0,IF($K59="check name",0,IF($M59="check name",0,SUM(G59:M59))))) -> 0 | T59: FL

Sheet Vault
B1: Vault Places
B2: ='START HERE'!A22 -> St. Paul Varsity Competition
B3: ='START HERE'!A23 -> Feb. 6th, 2019
B5: Place | C5: Name | E5: Chief Judge | F5: Acting Judge | G5: Neutral Deduction | H5: V1 Score | J5: Chief Judge | K5: Acting Judge | L5: Neutral Deduction | M5: V2 Score | N5: Chief Judge for scored vault | O5: Chief Judge for scored vault | P5: Highest chief judge score | Q5: Event Score | R5: Team
B6: 1 | C6: =Highland!$E$8 -> Lili Boyd | D6: V1 | E6: =Highland!$G$8 -> 8.1 | F6: =Highland!$I$8 -> 8.1 | G6: =Highland!$O$8 -> 0 | H6: =Highland!$K$8 -> 8.1 | I6: V2 | J6: =Highland!$G$9 -> 8.2 | K6: =Highland!$I$9 -> 8.2 | L6: =Highland!$O$9 -> 0 | M6: =Highland!$K$9 -> 8.2 | N6: =IF(Q6=H6,E6,J6) -> 8.1 | O6: =IF(Q6=M6,J6,D6) -> V1 | P6: =IF(O6>N6,O6,N6) -> V1 | Q6: =H6 -> 8.1 | R6: =Highland!$C$1 -> Highland
B7: 2 | C7: =Highland!$E$10 -> Mya Bishop | D7: V1 | E7: =Highland!$G$10 -> 8.2 | F7: =Highland!$I$10 -> 8.2 | G7: =Highland!$O$10 -> 0 | H7: =Highland!$K$10 -> 8.2 | I7: V2 | J7: =Highland!$G$11 -> 8.4 | K7: =Highland!$I$11 -> 8.4 | L7: =Highland!$O$11 -> 0 | M7: =Highland!$K$11 -> 8.4 | N7: 8.4 | O7: 8.4 | P7: 8.4 | Q7: =Highland!$M$10 -> 8.4 | R7: =Highland!$C$1 -> Highland
B8: 3 | C8: =Highland!$E$12 -> Lia Wallace | D8: V1 | E8: =Highland!$G$12 -> 8.35 | F8: =Highland!$I$12 -> 8.35 | G8: =Highland!$O$12 -> 0 | H8: =Highland!$K$12 -> 8.35 | I8: V2 | J8: =Highland!$G$13 -> 8.7 | K8: =Highland!$I$13 -> 8.7 | L8: =Highland!$O$13 -> 0 | M8: =Highland!$K$13 -> 8.7 | N8: 8.7 | O8: 8.7 | P8: 8.7 | Q8: =Highland!$M$12 -> 8.7 | R8: =Highland!$C$1 -> Highland
B9: 4 | C9: =Highland!$E$14 -> India David | D9: V1 | E9: =Highland!$G$14 -> 8.4 | F9: =Highland!$I$14 -> 8.4 | G9: =Highland!$O$14 -> 0 | H9: =Highland!$K$14 -> 8.4 | I9: V2 | J9: =Highland!$G$15 -> 8.55 | K9: =Highland!$I$15 -> 8.55 | L9: =Highland!$O$15 -> 0 | M9: =Highland!$K$15 -> 8.55 | N9: 8.55 | O9: 8.55 | P9: 8.55 | Q9: =Highland!$M$14 -> 8.55 | R9: =Highland!$C$1 -> Highland
B10: 5 | C10: =Highland!$E$16 -> Lucy Lipscomb | D10: V1 | E10: =Highland!$G$16 -> 9.6 | F10: =Highland!$I$16 -> 9.6 | G10: =Highland!$O$16 -> 0 | H10: =Highland!$K$16 -> 9.6 | I10: V2 | J10: =Highland!$G$17 -> 9.6 | K10: =Highland!$I$17 -> 9.6 | L10: =Highland!$O$17 -> 0 | M10: =Highland!$K$17 -> 9.6 | N10: 9.6 | O10: 9.6 | P10: 9.6 | Q10: =Highland!$M$16 -> 9.6 | R10: =Highland!$C$1 -> Highland
B11: 6 | C11: =Central!$E$8 -> Maddie Griggs | D11: V1 | E11: =Central!$G$8 -> 8 | F11: =Central!$I$8 -> 8 | G11: =Central!$O$8 -> 0 | H11: =Central!$K$8 -> 8 | I11: V2 | J11: =Central!$G$9 -> 8.1 | K11: =Central!$I$9 -> 8.1 | L11: =Central!$O$9 -> 0 | M11: =Central!$K$9 -> 8.1 | N11: 8.1 | O11: 8.1 | P11: 8.1 | Q11: =Central!$M$8 -> 8.1 | R11: =Central!$C$1 -> Central
B12: 7 | C12: =Central!$E$10 -> Sylvie Chaput | D12: V1 | E12: =Central!$G$10 -> 8.45 | F12: =Central!$I$10 -> 8.45 | G12: =Central!$O$10 -> 0 | H12: =Central!$K$10 -> 8.45 | I12: V2 | J12: =Central!$G$11 -> 8.05 | K12: =Central!$I$11 -> 8.05 | L12: =Central!$O$11 -> 0 | M12: =Central!$K$11 -> 8.05 | N12: 8.45 | O12: V1 | P12: V1 | Q12: =Central!$M$10 -> 8.45 | R12: =Central!$C$1 -> Central
B13: 8 | C13: =Central!$E$12 -> Eden Hunt | D13: V1 | E13: =Central!$G$12 -> 8.2 | F13: =Central!$I$12 -> 8.2 | G13: =Central!$O$12 -> 0 | H13: =Central!$K$12 -> 8.2 | I13: V2 | J13: =Central!$G$13 -> 7.95 | K13: =Central!$I$13 -> 7.95 | L13: =Central!$O$13 -> 0 | M13: =Central!$K$13 -> 7.95 | N13: 8.2 | O13: V1 | P13: V1 | Q13: =Central!$M$12 -> 8.2 | R13: =Central!$C$1 -> Central
B14: 9 | C14: =Central!$E$14 -> Cali Rivera | D14: V1 | E14: =Central!$G$14 -> 8.3 | F14: =Central!$I$14 -> 8.3 | G14: =Central!$O$14 -> 0 | H14: =Central!$K$14 -> 8.3 | I14: V2 | J14: =Central!$G$15 -> 8.35 | K14: =Central!$I$15 -> 8.35 | L14: =Central!$O$15 -> 0 | M14: =Central!$K$15 -> 8.35 | N14: 8.35 | O14: 8.35 | P14: 8.35 | Q14: =Central!$M$14 -> 8.35 | R14: =Central!$C$1 -> Central
B15: 10 | C15: =Central!$E$16 -> Saskia Eberman | D15: V1 | E15: =Central!$G$16 -> 8.2 | F15: =Central!$I$16 -> 8.2 | G15: =Central!$O$16 -> 0 | H15: =Central!$K$16 -> 8.2 | I15: V2 | J15: =Central!$G$17 -> 7.75 | K15: =Central!$I$17 -> 7.75 | L15: =Central!$O$17 -> 0 | M15: =Central!$K$17 -> 7.75 | N15: 8.2 | O15: V1 | P15: V1 | Q15: =Central!$M$16 -> 8.2 | R15: =Central!$C$1 -> Central
B16: 11 | C16: =Johnson!$E$8 -> Janpen Thao | D16: V1 | E16: =Johnson!$G$8 -> 6.9 | F16: =Johnson!$I$8 -> 6.9 | G16: =Johnson!$O$8 -> 0 | H16: =Johnson!$K$8 -> 6.9 | I16: V2 | J16: =Johnson!$G$9 -> 6.5 | K16: =Johnson!$I$9 -> 6.5 | L16: =Johnson!$O$9 -> 0 | M16: =Johnson!$K$9 -> 6.5 | N16: 6.9 | O16: V1 | P16: V1 | Q16: =Johnson!$M$8 -> 6.9 | R16: =Johnson!$C$1 -> Johnson
B17: 12 | C17: =Johnson!$E$10 -> Jee Xiong | D17: V1 | E17: =Johnson!$G$10 -> 6.6 | F17: =Johnson!$I$10 -> 6.6 | G17: =Johnson!$O$10 -> 0 | H17: =Johnson!$K$10 -> 6.6 | I17: V2 | J17: =Johnson!$G$11 -> 6.1 | K17: =Johnson!$I$11 -> 6.1 | L17: =Johnson!$O$11 -> 0 | M17: =Johnson!$K$11 -> 6.1 | N17: 6.6 | O17: V1 | P17: V1 | Q17: =Johnson!$M$10 -> 6.6 | R17: =Johnson!$C$1 -> Johnson
B18: 13 | C18: =Johnson!$E$12 -> Mariana Urbina | D18: V1 | E18: =Johnson!$G$12 -> 6.7 | F18: =Johnson!$I$12 -> 6.7 | G18: =Johnson!$O$12 -> 0 | H18: =Johnson!$K$12 -> 6.7 | I18: V2 | J18: =Johnson!$G$13 -> 6.85 | K18: =Johnson!$I$13 -> 6.85 | L18: =Johnson!$O$13 -> 0 | M18: =Johnson!$K$13 -> 6.85 | N18: 6.85 | O18: 6.85 | P18: 6.85 | Q18: =Johnson!$M$12 -> 6.85 | R18: =Johnson!$C$1 -> Johnson
B19: 14 | C19: =Johnson!$E$14 -> Txiab Xiong | D19: V1 | E19: =Johnson!$G$14 -> 6.5 | F19: =Johnson!$I$14 -> 6.5 | G19: =Johnson!$O$14 -> 0 | H19: =Johnson!$K$14 -> 6.5 | I19: V2 | J19: =Johnson!$G$15 -> 6.5 | K19: =Johnson!$I$15 -> 6.5 | L19: =Johnson!$O$15 -> 0 | M19: =Johnson!$K$15 -> 6.5 | N19: 6.5 | O19: 6.5 | P19: 6.5 | Q19: =Johnson!$M$14 -> 6.5 | R19: =Johnson!$C$1 -> Johnson
B20: 15 | C20: =Johnson!$E$16 -> De'Quaia Crenshaw | D20: V1 | E20: =Johnson!$G$16 -> 6.6 | F20: =Johnson!$I$16 -> 6.6 | G20: =Johnson!$O$16 -> 0 | H20: =Johnson!$K$16 -> 6.6 | I20: V2 | J20: =Johnson!$G$17 -> 6.8 | K20: =Johnson!$I$17 -> 6.8 | L20: =Johnson!$O$17 -> 0 | M20: =Johnson!$K$17 -> 6.8 | N20: 6.8 | O20: 6.8 | P20: 6.8 | Q20: =Johnson!$M$16 -> 6.8 | R20: =Johnson!$C$1 -> Johnson
B21: 16 | C21: =Como!$E$8 -> Emma Osbourne | D21: V1 | E21: =Como!$G$8 -> 3.8 | F21: =Como!$I$8 -> 3.8 | G21: =Como!$O$8 -> 0 | H21: =Como!$K$8 -> 3.8 | I21: V2 | J21: =Como!$G$9 -> 5.8 | K21: =Como!$I$9 -> 5.8 | L21: =Como!$O$9 -> 0 | M21: =Como!$K$9 -> 5.8 | N21: 5.8 | O21: 5.8 | P21: 5.8 | Q21: =Como!$M$8 -> 5.8 | R21: =Como!$C$1 -> Como
B22: 17 | C22: =Como!$E$10 -> Alyssa Aarthon | D22: V1 | E22: =Como!$G$10 -> 5.1 | F22: =Como!$I$10 -> 5.1 | G22: =Como!$O$10 -> 0 | H22: =Como!$K$10 -> 5.1 | I22: V2 | J22: =Como!$G$11 -> 6.1 | K22: =Como!$I$11 -> 6.1 | L22: =Como!$O$11 -> 0 | M22: =Como!$K$11 -> 6.1 | N22: 6.1 | O22: 6.1 | P22: 6.1 | Q22: =Como!$M$10 -> 6.1 | R22: =Como!$C$1 -> Como
B23: 18 | C23: =Como!$E$12 -> Lily Klett | D23: V1 | E23: =Como!$G$12 -> 6.35 | F23: =Como!$I$12 -> 6.35 | G23: =Como!$O$12 -> 0 | H23: =Como!$K$12 -> 6.35 | I23: V2 | J23: =Como!$G$13 -> 6.2 | K23: =Como!$I$13 -> 6.2 | L23: =Como!$O$13 -> 0 | M23: =Como!$K$13 -> 6.2 | N23: 6.35 | O23: V1 | P23: V1 | Q23: =Como!$M$12 -> 6.35 | R23: =Como!$C$1 -> Como
B24: 19 | C24: =Como!$E$14 -> Amelia Christ | D24: V1 | E24: =Como!$G$14 -> 8.3 | F24: =Como!$I$14 -> 8.3 | G24: =Como!$O$14 -> 0 | H24: =Como!$K$14 -> 8.3 | I24: V2 | J24: =Como!$G$15 -> 6.9 | K24: =Como!$I$15 -> 6.9 | L24: =Como!$O$15 -> 0 | M24: =Como!$K$15 -> 6.9 | N24: 8.3 | O24: V1 | P24: V1 | Q24: =Como!$M$14 -> 8.3 | R24: =Como!$C$1 -> Como
B25: 20 | C25: =Como!$E$16 -> 0 | D25: V1 | E25: =Como!$G$16 -> 0 | F25: =Como!$I$16 -> 0 | G25: =Como!$O$16 -> 0 | H25: =Como!$K$16 -> 0 | I25: V2 | J25: =Como!$G$17 -> 0 | K25: =Como!$I$17 -> 0 | L25: =Como!$O$17 -> 0 | M25: =Como!$K$17 -> 0 | N25: 0 | O25: 0 | P25: 0 | Q25: =Como!$M$16 -> 0 | R25: =Como!$C$1 -> Como

Sheet Bars
B1: Bars Places
B2: ='START HERE'!A22 -> St. Paul Varsity Competition
B3: ='START HERE'!A23 -> Feb. 6th, 2019
B5: Place | C5: Name | D5: Chief Judge | E5: Acting Judge | F5: Neutral Deduction | G5: Event Score | H5: Team
B6: 1 | C6: =Highland!$E$23 -> Annika Wetzel | D6: =Highland!$G$23 -> 7.1 | E6: =Highland!$I$23 -> 7.1 | F6: =Highland!$M$23 -> 0 | G6: =Highland!$K$23 -> 7.1 | H6: =Highland!$C$1 -> Highland
B7: 2 | C7: =Highland!$E$24 -> India David | D7: =Highland!$G$24 -> 8.2 | E7: =Highland!$I$24 -> 8.2 | F7: =Highland!$M$24 -> 0 | G7: =Highland!$K$24 -> 8.2 | H7: =Highland!$C$1 -> Highland
B8: 3 | C8: =Highland!$E$25 -> Lili Boyd | D8: =Highland!$G$25 -> 7.2 | E8: =Highland!$I$25 -> 7.2 | F8: =Highland!$M$25 -> 0 | G8: =Highland!$K$25 -> 7.2 | H8: =Highland!$C$1 -> Highland
B9: 4 | C9: =Highland!$E$26 -> Lucy Lipscomb | D9: =Highland!$G$26 -> 8.45 | E9: =Highland!$I$26 -> 8.45 | F9: =Highland!$M$26 -> 0 | G9: =Highland!$K$26 -> 8.45 | H9: =Highland!$C$1 -> Highland
B10: 5 | C10: =Highland!$E$27 -> Lia Wallace | D10: =Highland!$G$27 -> 8.5 | E10: =Highland!$I$27 -> 8.5 | F10: =Highland!$M$27 -> 0 | G10: =Highland!$K$27 -> 8.5 | H10: =Highland!$C$1 -> Highland
B11: 6 | C11: =Central!$E$23 -> Maddie Griggs | D11: =Central!$G$23 -> 4.75 | E11: =Central!$I$23 -> 4.75 | F11: =Central!$M$23 -> 0 | G11: =Central!$K$23 -> 4.75 | H11: =Central!$C$1 -> Central
B12: 7 | C12: =Central!$E$24 -> Lia Guider | D12: =Central!$G$24 -> 6.8 | E12: =Central!$I$24 -> 6.8 | F12: =Central!$M$24 -> 0 | G12: =Central!$K$24 -> 6.8 | H12: =Central!$C$1 -> Central
B13: 8 | C13: =Central!$E$25 -> Cali Rivera | D13: =Central!$G$25 -> 6.65 | E13: =Central!$I$25 -> 6.65 | F13: =Central!$M$25 -> 0 | G13: =Central!$K$25 -> 6.65 | H13: =Central!$C$1 -> Central
B14: 9 | C14: =Central!$E$26 -> Maddie Arnet | D14: =Central!$G$26 -> 6.4 | E14: =Central!$I$26 -> 6.4 | F14: =Central!$M$26 -> 0 | G14: =Central!$K$26 -> 6.4 | H14: =Central!$C$1 -> Central
B15: 10 | C15: =Central!$E$27 -> Eden Hunt | D15: =Central!$G$27 -> 7.5 | E15: =Central!$I$27 -> 7.5 | F15: =Central!$M$27 -> 0 | G15: =Central!$K$27 -> 7.5 | H15: =Central!$C$1 -> Central
B16: 11 | C16: =Johnson!$E$23 -> Jee Xiong | D16: =Johnson!$G$23 -> 3.7 | E16: =Johnson!$I$23 -> 3.7 | F16: =Johnson!$M$23 -> 0 | G16: =Johnson!$K$23 -> 3.7 | H16: =Johnson!$C$1 -> Johnson
B17: 12 | C17: =Johnson!$E$24 -> Txiab Xiong | D17: =Johnson!$G$24 -> 3.85 | E17: =Johnson!$I$24 -> 3.85 | F17: =Johnson!$M$24 -> 0 | G17: =Johnson!$K$24 -> 3.85 | H17: =Johnson!$C$1 -> Johnson
B18: 13 | C18: =Johnson!$E$25 -> Mariana Urbina | D18: =Johnson!$G$25 -> 4.1 | E18: =Johnson!$I$25 -> 4.1 | F18: =Johnson!$M$25 -> 0 | G18: =Johnson!$K$25 -> 4.1 | H18: =Johnson!$C$1 -> Johnson
B19: 14 | C19: =Johnson!$E$26 -> Nevaeh Sangster-Lamb | D19: =Johnson!$G$26 -> 3.9 | E19: =Johnson!$I$26 -> 3.9 | F19: =Johnson!$M$26 -> 0 | G19: =Johnson!$K$26 -> 3.9 | H19: =Johnson!$C$1 -> Johnson
B20: 15 | C20: =Johnson!$E$27 -> De'Quaia Crenshaw | D20: =Johnson!$G$27 -> 6.9 | E20: =Johnson!$I$27 -> 6.9 | F20: =Johnson!$M$27 -> 0 | G20: =Johnson!$K$27 -> 6.9 | H20: =Johnson!$C$1 -> Johnson
B21: 16 | C21: =Como!$E$23 -> Emma Osbourne | D21: =Como!$G$23 -> 2.2 | E21: =Como!$I$23 -> 2.2 | F21: =Como!$M$23 -> 0 | G21: =Como!$K$23 -> 2.2 | H21: =Como!$C$1 -> Como
B22: 17 | C22: =Como!$E$24 -> Lily Klett | D22: =Como!$G$24 -> 2.7 | E22: =Como!$I$24 -> 2.7 | F22: =Como!$M$24 -> 0 | G22: =Como!$K$24 -> 2.7 | H22: =Como!$C$1 -> Como
B23: 18 | C23: =Como!$E$25 -> Alyssa Aarthon | D23: =Como!$G$25 -> 3.3 | E23: =Como!$I$25 -> 3.3 | F23: =Como!$M$25 -> 0 | G23: =Como!$K$25 -> 3.3 | H23: =Como!$C$1 -> Como
B24: 19 | C24: =Como!$E$26 -> Amelia Christ | D24: =Como!$G$26 -> 6.5 | E24: =Como!$I$26 -> 6.5 | F24: =Como!$M$26 -> 0 | G24: =Como!$K$26 -> 6.5 | H24: =Como!$C$1 -> Como
B25: 20 | C25: =Como!$E$27 -> 0 | D25: =Como!$G$27 -> 0 | E25: =Como!$I$27 -> 0 | F25: =Como!$M$27 -> 0 | G25: =Como!$K$27 -> 0 | H25: =Como!$C$1 -> Como

Sheet Beam
B1: Beam Places
B2: ='START HERE'!A22 -> St. Paul Varsity Competition
B3: ='START HERE'!A23 -> Feb. 6th, 2019
B5: Place | C5: Name | D5: Chief Judge | E5: Acting Judge | F5: Neutral Deduction | G5: Event Score | H5: Team
B6: 1 | C6: =Highland!$E$33 -> Kate Paulson | D6: =Highland!$G$33 -> 8.2 | E6: =Highland!$I$33 -> 8.2 | F6: =Highland!$M$33 -> 0 | G6: =Highland!$K$33 -> 8.2 | H6: =Highland!$C$1 -> Highland
B7: 2 | C7: =Highland!$E$34 -> Lili Boyd | D7: =Highland!$G$34 -> 8.35 | E7: =Highland!$I$34 -> 8.35 | F7: =Highland!$M$34 -> 0 | G7: =Highland!$K$34 -> 8.35 | H7: =Highland!$C$1 -> Highland
B8: 3 | C8: =Highland!$E$35 -> India David | D8: =Highland!$G$35 -> 7.65 | E8: =Highland!$I$35 -> 7.65 | F8: =Highland!$M$35 -> 0 | G8: =Highland!$K$35 -> 7.65 | H8: =Highland!$C$1 -> Highland
B9: 4 | C9: =Highland!$E$36 -> Lia Wallace | D9: =Highland!$G$36 -> 8 | E9: =Highland!$I$36 -> 8 | F9: =Highland!$M$36 -> 0 | G9: =Highland!$K$36 -> 8 | H9: =Highland!$C$1 -> Highland
B10: 5 | C10: =Highland!$E$37 -> Lucy Lipscomb | D10: =Highland!$G$37 -> 9 | E10: =Highland!$I$37 -> 9 | F10: =Highland!$M$37 -> 0 | G10: =Highland!$K$37 -> 9 | H10: =Highland!$C$1 -> Highland
B11: 6 | C11: =Central!$E$33 -> Sylvie Chaput | D11: =Central!$G$33 -> 7.35 | E11: =Central!$I$33 -> 7.35 | F11: =Central!$M$33 -> 0 | G11: =Central!$K$33 -> 7.35 | H11: =Central!$C$1 -> Central
B12: 7 | C12: =Central!$E$34 -> Cali Rivera | D12: =Central!$G$34 -> 6.85 | E12: =Central!$I$34 -> 6.85 | F12: =Central!$M$34 -> 0 | G12: =Central!$K$34 -> 6.85 | H12: =Central!$C$1 -> Central
B13: 8 | C13: =Central!$E$35 -> Maddie Griggs | D13: =Central!$G$35 -> 7.35 | E13: =Central!$I$35 -> 7.35 | F13: =Central!$M$35 -> 0 | G13: =Central!$K$35 -> 7.35 | H13: =Central!$C$1 -> Central
B14: 9 | C14: =Central!$E$36 -> Gaomong Xiong | D14: =Central!$G$36 -> 7.3 | E14: =Central!$I$36 -> 7.3 | F14: =Central!$M$36 -> 0 | G14: =Central!$K$36 -> 7.3 | H14: =Central!$C$1 -> Central
B15: 10 | C15: =Central!$E$37 -> Eden Hunt | D15: =Central!$G$37 -> 7.05 | E15: =Central!$I$37 -> 7.05 | F15: =Central!$M$37 -> 0 | G15: =Central!$K$37 -> 7.05 | H15: =Central!$C$1 -> Central
B16: 11 | C16: =Johnson!$E$33 -> Tahnia Townsend | D16: =Johnson!$G$33 -> 4 | E16: =Johnson!$I$33 -> 4 | F16: =Johnson!$M$33 -> 0 | G16: =Johnson!$K$33 -> 4 | H16: =Johnson!$C$1 -> Johnson
B17: 12 | C17: =Johnson!$E$34 -> Mariana Urbina | D17: =Johnson!$G$34 -> 4.4 | E17: =Johnson!$I$34 -> 4.4 | F17: =Johnson!$M$34 -> 0 | G17: =Johnson!$K$34 -> 4.4 | H17: =Johnson!$C$1 -> Johnson
B18: 13 | C18: =Johnson!$E$35 -> Txiab Xiong | D18: =Johnson!$G$35 -> 5.1 | E18: =Johnson!$I$35 -> 5.1 | F18: =Johnson!$M$35 -> 0 | G18: =Johnson!$K$35 -> 5.1 | H18: =Johnson!$C$1 -> Johnson
B19: 14 | C19: =Johnson!$E$36 -> Navaeh Sangster-Lamb | D19: =Johnson!$G$36 -> 5.75 | E19: =Johnson!$I$36 -> 5.75 | F19: =Johnson!$M$36 -> 0 | G19: =Johnson!$K$36 -> 5.75 | H19: =Johnson!$C$1 -> Johnson
B20: 15 | C20: =Johnson!$E$37 -> De'Quaia Crenshaw | D20: =Johnson!$G$37 -> 4.7 | E20: =Johnson!$I$37 -> 4.7 | F20: =Johnson!$M$37 -> 0 | G20: =Johnson!$K$37 -> 4.7 | H20: =Johnson!$C$1 -> Johnson
B21: 16 | C21: =Como!$E$33 -> Alyssa Aarthon | D21: =Como!$G$33 -> 3 | E21: =Como!$I$33 -> 3 | F21: =Como!$M$33 -> 0 | G21: =Como!$K$33 -> 3 | H21: =Como!$C$1 -> Como
B22: 17 | C22: =Como!$E$34 -> Minnie Her | D22: =Como!$G$34 -> 2.3 | E22: =Como!$I$34 -> 2.3 | F22: =Como!$M$34 -> 0 | G22: =Como!$K$34 -> 2.3 | H22: =Como!$C$1 -> Como
B23: 18 | C23: =Como!$E$35 -> Isabella Hernandez | D23: =Como!$G$35 -> 3.6 | E23: =Como!$I$35 -> 3.6 | F23: =Como!$M$35 -> 0 | G23: =Como!$K$35 -> 3.6 | H23: =Como!$C$1 -> Como
B24: 19 | C24: =Como!$E$36 -> Jennifer Rosos | D24: =Como!$G$36 -> 4.9 | E24: =Como!$I$36 -> 4.9 | F24: =Como!$M$36 -> 0 | G24: =Como!$K$36 -> 4.9 | H24: =Como!$C$1 -> Como
B25: 20 | C25: =Como!$E$37 -> Amelia Christ | D25: =Como!$G$37 -> 7.15 | E25: =Como!$I$37 -> 7.15 | F25: =Como!$M$37 -> 0 | G25: =Como!$K$37 -> 7.15 | H25: =Como!$C$1 -> Como

Sheet Floor
B1: Floor Places
B2: ='START HERE'!A22 -> St. Paul Varsity Competition
B3: ='START HERE'!A23 -> Feb. 6th, 2019
B5: Place | C5: Name | D5: Chief Judge | E5: Acting Judge | F5: Neutral Deduction | G5: Event Score | H5: Team
B6: 1 | C6: =Highland!$E$43 -> Annika Wetzel | D6: =Highland!$G$43 -> 8.3 | E6: =Highland!$I$43 -> 8.3 | F6: =Highland!$M$43 -> 0 | G6: =Highland!$K$43 -> 8.3 | H6: =Highland!$C$1 -> Highland
B7: 2 | C7: =Highland!$E$44 -> Lili Boyd | D7: =Highland!$G$44 -> 8.25 | E7: =Highland!$I$44 -> 8.25 | F7: =Highland!$M$44 -> 0 | G7: =Highland!$K$44 -> 8.25 | H7: =Highland!$C$1 -> Highland
B8: 3 | C8: =Highland!$E$45 -> India David | D8: =Highland!$G$45 -> 7.9 | E8: =Highland!$I$45 -> 7.9 | F8: =Highland!$M$45 -> 0 | G8: =Highland!$K$45 -> 7.9 | H8: =Highland!$C$1 -> Highland
B9: 4 | C9: =Highland!$E$46 -> Lia Wallace | D9: =Highland!$G$46 -> 9.4 | E9: =Highland!$I$46 -> 9.4 | F9: =Highland!$M$46 -> 0 | G9: =Highland!$K$46 -> 9.4 | H9: =Highland!$C$1 -> Highland
B10: 5 | C10: =Highland!$E$47 -> Lucy Lipscomb | D10: =Highland!$G$47 -> 9.45 | E10: =Highland!$I$47 -> 9.45 | F10: =Highland!$M$47 -> 0 | G10: =Highland!$K$47 -> 9.45 | H10: =Highland!$C$1 -> Highland
B11: 6 | C11: =Central!$E$43 -> Saskia Eberman | D11: =Central!$G$43 -> 8.1 | E11: =Central!$I$43 -> 8.1 | F11: =Central!$M$43 -> 0 | G11: =Central!$K$43 -> 8.1 | H11: =Central!$C$1 -> Central
B12: 7 | C12: =Central!$E$44 -> Sylvie Chaput | D12: =Central!$G$44 -> 7.7 | E12: =Central!$I$44 -> 7.7 | F12: =Central!$M$44 -> 0 | G12: =Central!$K$44 -> 7.7 | H12: =Central!$C$1 -> Central
B13: 8 | C13: =Central!$E$45 -> Maddie Arnet | D13: =Central!$G$45 -> 7.9 | E13: =Central!$I$45 -> 7.9 | F13: =Central!$M$45 -> 0 | G13: =Central!$K$45 -> 7.9 | H13: =Central!$C$1 -> Central
B14: 9 | C14: =Central!$E$46 -> Cali Rivera | D14: =Central!$G$46 -> 8.3 | E14: =Central!$I$46 -> 8.3 | F14: =Central!$M$46 -> 0 | G14: =Central!$K$46 -> 8.3 | H14: =Central!$C$1 -> Central
B15: 10 | C15: =Central!$E$47 -> Eden Hunt | D15: =Central!$G$47 -> 8.9 | E15: =Central!$I$47 -> 8.9 | F15: =Central!$M$47 -> 0 | G15: =Central!$K$47 -> 8.9 | H15: =Central!$C$1 -> Central
B16: 11 | C16: =Johnson!$E$43 -> Nevaeh Sangster-Lamb | D16: =Johnson!$G$43 -> 6 | E16: =Johnson!$I$43 -> 6 | F16: =Johnson!$M$43 -> 0 | G16: =Johnson!$K$43 -> 6 | H16: =Johnson!$C$1 -> Johnson
B17: 12 | C17: =Johnson!$E$44 -> Txiab Xiong | D17: =Johnson!$G$44 -> 6.4 | E17: =Johnson!$I$44 -> 6.4 | F17: =Johnson!$M$44 -> 0 | G17: =Johnson!$K$44 -> 6.4 | H17: =Johnson!$C$1 -> Johnson
B18: 13 | C18: =Johnson!$E$45 -> Mariana Urbina | D18: =Johnson!$G$45 -> 6.3 | E18: =Johnson!$I$45 -> 6.3 | F18: =Johnson!$M$45 -> 0 | G18: =Johnson!$K$45 -> 6.3 | H18: =Johnson!$C$1 -> Johnson
B19: 14 | C19: =Johnson!$E$46 -> Tahnia Townsend | D19: =Johnson!$G$46 -> 7.2 | E19: =Johnson!$I$46 -> 7.2 | F19: =Johnson!$M$46 -> 0 | G19: =Johnson!$K$46 -> 7.2 | H19: =Johnson!$C$1 -> Johnson
B20: 15 | C20: =Johnson!$E$47 -> De'Quaia Crenshaw | D20: =Johnson!$G$47 -> 7 | E20: =Johnson!$I$47 -> 7 | F20: =Johnson!$M$47 -> 0 | G20: =Johnson!$K$47 -> 7 | H20: =Johnson!$C$1 -> Johnson
B21: 16 | C21: =Como!$E$43 -> Amelia Hernandez | D21: =Como!$G$43 -> 4 | E21: =Como!$I$43 -> 4 | F21: =Como!$M$43 -> 0 | G21: =Como!$K$43 -> 4 | H21: =Como!$C$1 -> Como
B22: 17 | C22: =Como!$E$44 -> Isadora McGinley Myers | D22: =Como!$G$44 -> 5.7 | E22: =Como!$I$44 -> 5.7 | F22: =Como!$M$44 -> 0 | G22: =Como!$K$44 -> 5.7 | H22: =Como!$C$1 -> Como
B23: 18 | C23: =Como!$E$45 -> Isabella Hernandez | D23: =Como!$G$45 -> 4.7 | E23: =Como!$I$45 -> 4.7 | F23: =Como!$M$45 -> 0 | G23: =Como!$K$45 -> 4.7 | H23: =Como!$C$1 -> Como
B24: 19 | C24: =Como!$E$46 -> Jennifer Rosos | D24: =Como!$G$46 -> 5.9 | E24: =Como!$I$46 -> 5.9 | F24: =Como!$M$46 -> 0 | G24: =Como!$K$46 -> 5.9 | H24: =Como!$C$1 -> Como
B25: 20 | C25: =Como!$E$47 -> Amelia Christ | D25: =Como!$G$47 -> 7.6 | E25: =Como!$I$47 -> 7.6 | F25: =Como!$M$47 -> 0 | G25: =Como!$K$47 -> 7.6 | H25: =Como!$C$1 -> Como

Sheet All-Around
B1: All-Around Places
B2: ='START HERE'!A22 -> St. Paul Varsity Competition
B3: ='START HERE'!A23 -> Feb. 6th, 2019
E4: Vault | M4: Bars | Q4: Beam | U4: Floor
B5: Pl | C5: Name | E5: Chief Judge | F5: Acting Judge | G5: Neutral Ded. | I5: Chief Judge | J5: Acting Judge | K5: Neutral Ded. | L5: Vault Score | M5: Chief Judge | N5: Acting Judge | O5: Neutral Ded. | P5: Bars Score | Q5: Chief Judge | R5: Acting Judge | S5: Neutral Ded. | T5: Beam Score | U5: Chief Judge | V5: Acting Judge | W5: Neutral Ded. | X5: Floor Score | Y5: All-Around Score | Z5: Team | AA5: Tie Breaker Event
B6: 1 | C6: =Highland!$E$58 -> Lucy Lipscomb | D6: V1 | E6: =Highland!$G$14 -> 8.4 | F6: =Highland!$I$14 -> 8.4 | G6: =Highland!$O$14 -> 0 | H6: V2 | I6: =Highland!$G$15 -> 8.55 | J6: =Highland!$I$15 -> 8.55 | K6: =Highland!$M$26 -> 0 | L6: =Highland!$M$14 -> 8.55 | M6: =Highland!$G$26 -> 8.45 | N6: =Highland!$I$26 -> 8.45 | O6: =Highland!$M$26 -> 0 | P6: =Highland!$I$58 -> 8.45 | Q6: =Highland!$G$36 -> 8 | R6: =Highland!$I$36 -> 8 | S6: =Highland!$M$36 -> 0 | T6: =Highland!$K$58 -> 9 | U6: =Highland!$G$46 -> 9.4 | V6: =Highland!$I$46 -> 9.4 | W6: =Highland!$M$46 -> 0 | X6: =Highland!$M$58 -> 9.45 | Y6: =Highland!$O$58 -> 36.5 | Z6: =Highland!$C$1 -> Highland | AA6: =Highland!$Q$58 -> 0
B7: 2 | C7: =Highland!$E$57 -> Lia Wallace | D7: V1 | E7: =Highland!$G$12 -> 8.35 | F7: =Highland!$I$12 -> 8.35 | G7: =Highland!$O$12 -> 0 | H7: V2 | I7: =Highland!$G$13 -> 8.7 | J7: =Highland!$I$13 -> 8.7 | K7: =Highland!$M$25 -> 0 | L7: =Highland!$M$12 -> 8.7 | M7: =Highland!$G$25 -> 7.2 | N7: =Highland!$I$25 -> 7.2 | O7: =Highland!$M$25 -> 0 | P7: =Highland!$I$57 -> 8.5 | Q7: =Highland!$G$35 -> 7.65 | R7: =Highland!$I$35 -> 7.65 | S7: =Highland!$M$35 -> 0 | T7: =Highland!$K$57 -> 8 | U7: =Highland!$G$45 -> 7.9 | V7: =Highland!$I$45 -> 7.9 | W7: =Highland!$M$45 -> 0 | X7: =Highland!$M$57 -> 9.4 | Y7: =Highland!$O$57 -> 34.6 | Z7: =Highland!$C$1 -> Highland | AA7: =Highland!$Q$57 -> 0
B8: 3 | C8: =Highland!$E$56 -> India David | D8: V1 | E8: =Highland!$G$10 -> 8.2 | F8: =Highland!$I$10 -> 8.2 | G8: =Highland!$O$10 -> 0 | H8: V2 | I8: =Highland!$G$11 -> 8.4 | J8: =Highland!$I$11 -> 8.4 | K8: =Highland!$M$24 -> 0 | L8: =Highland!$M$10 -> 8.4 | M8: =Highland!$G$24 -> 8.2 | N8: =Highland!$I$24 -> 8.2 | O8: =Highland!$M$24 -> 0 | P8: =Highland!$I$56 -> 8.2 | Q8: =Highland!$G$34 -> 8.35 | R8: =Highland!$I$34 -> 8.35 | S8: =Highland!$M$34 -> 0 | T8: =Highland!$K$56 -> 7.65 | U8: =Highland!$G$44 -> 8.25 | V8: =Highland!$I$44 -> 8.25 | W8: =Highland!$M$44 -> 0 | X8: =Highland!$M$56 -> 7.9 | Y8: =Highland!$O$56 -> 32.3 | Z8: =Highland!$C$1 -> Highland | AA8: =Highland!$Q$56 -> 0
B9: 4 | C9: =Highland!$E$55 -> Lili Boyd | D9: V1 | E9: =Highland!$G$8 -> 8.1 | F9: =Highland!$I$8 -> 8.1 | G9: =Highland!$O$8 -> 0 | H9: V2 | I9: =Highland!$G$9 -> 8.2 | J9: =Highland!$I$9 -> 8.2 | K9: =Highland!$M$23 -> 0 | L9: =Highland!$M$8 -> 8.2 | M9: =Highland!$G$23 -> 7.1 | N9: =Highland!$I$23 -> 7.1 | O9: =Highland!$M$23 -> 0 | P9: =Highland!$I$55 -> 7.2 | Q9: =Highland!$G$33 -> 8.2 | R9: =Highland!$I$33 -> 8.2 | S9: =Highland!$M$33 -> 0 | T9: =Highland!$K$55 -> 8.35 | U9: =Highland!$G$43 -> 8.3 | V9: =Highland!$I$43 -> 8.3 | W9: =Highland!$M$43 -> 0 | X9: =Highland!$M$55 -> 8.25 | Y9: =Highland!$O$55 -> 32 | Z9: =Highland!$C$1 -> Highland | AA9: =Highland!$Q$55 -> 0
B10: 5 | C10: =Central!$E$56 -> Eden Hunt | D10: V1 | E10: =Central!$G$10 -> 8.45 | F10: =Central!$I$10 -> 8.45 | G10: =Central!$O$10 -> 0 | H10: V2 | I10: =Central!$G$11 -> 8.05 | J10: =Central!$I$11 -> 8.05 | K10: =Central!$M$24 -> 0 | L10: =Central!$M$10 -> 8.45 | M10: =Central!$G$24 -> 6.8 | N10: =Central!$I$24 -> 6.8 | O10: =Central!$M$24 -> 0 | P10: =Central!$I$56 -> 7.5 | Q10: =Central!$G$34 -> 6.85 | R10: =Central!$I$34 -> 6.85 | S10: =Central!$M$34 -> 0 | T10: =Central!$K$56 -> 7.05 | U10: =Central!$G$44 -> 7.7 | V10: =Central!$I$44 -> 7.7 | W10: =Central!$M$44 -> 0 | X10: =Central!$M$56 -> 8.9 | Y10: =Central!$O$56 -> 31.65 | Z10: =Central!$C$1 -> Central | AA10: =Central!$Q$56 -> 0
B11: 6 | C11: =Central!$E$55 -> Cali Rivera | D11: V1 | E11: =Central!$G$8 -> 8 | F11: =Central!$I$8 -> 8 | G11: =Central!$O$8 -> 0 | H11: V2 | I11: =Central!$G$9 -> 8.1 | J11: =Central!$I$9 -> 8.1 | K11: =Central!$M$23 -> 0 | L11: =Central!$M$8 -> 8.1 | M11: =Central!$G$23 -> 4.75 | N11: =Central!$I$23 -> 4.75 | O11: =Central!$M$23 -> 0 | P11: =Central!$I$55 -> 6.65 | Q11: =Central!$G$33 -> 7.35 | R11: =Central!$I$33 -> 7.35 | S11: =Central!$M$33 -> 0 | T11: =Central!$K$55 -> 6.85 | U11: =Central!$G$43 -> 8.1 | V11: =Central!$I$43 -> 8.1 | W11: =Central!$M$43 -> 0 | X11: =Central!$M$55 -> 8.3 | Y11: =Central!$O$55 -> 30.15 | Z11: =Central!$C$1 -> Central | AA11: =Central!$Q$55 -> 0
B12: 7 | C12: =Johnson!$E$57 -> De'Quaia Crenshaw | D12: V1 | E12: =Johnson!$G$12 -> 6.7 | F12: =Johnson!$I$12 -> 6.7 | G12: =Johnson!$O$12 -> 0 | H12: V2 | I12: =Johnson!$G$13 -> 6.85 | J12: =Johnson!$I$13 -> 6.85 | K12: =Johnson!$M$25 -> 0 | L12: =Johnson!$M$12 -> 6.85 | M12: =Johnson!$G$25 -> 4.1 | N12: =Johnson!$I$25 -> 4.1 | O12: =Johnson!$M$25 -> 0 | P12: =Johnson!$I$57 -> 6.9 | Q12: =Johnson!$G$35 -> 5.1 | R12: =Johnson!$I$35 -> 5.1 | S12: =Johnson!$M$35 -> 0 | T12: =Johnson!$K$57 -> 4.7 | U12: =Johnson!$G$45 -> 6.3 | V12: =Johnson!$I$45 -> 6.3 | W12: =Johnson!$M$45 -> 0 | X12: =Johnson!$M$57 -> 7 | Y12: =Johnson!$O$57 -> 25.4 | Z12: =Johnson!$C$1 -> Johnson | AA12: =Johnson!$Q$57 -> 0
B13: 8 | C13: =Johnson!$E$56 -> Txiab Xiong | D13: V1 | E13: =Johnson!$G$10 -> 6.6 | F13: =Johnson!$I$10 -> 6.6 | G13: =Johnson!$O$10 -> 0 | H13: V2 | I13: =Johnson!$G$11 -> 6.1 | J13: =Johnson!$I$11 -> 6.1 | K13: =Johnson!$M$24 -> 0 | L13: =Johnson!$M$10 -> 6.6 | M13: =Johnson!$G$24 -> 3.85 | N13: =Johnson!$I$24 -> 3.85 | O13: =Johnson!$M$24 -> 0 | P13: =Johnson!$I$56 -> 3.85 | Q13: =Johnson!$G$34 -> 4.4 | R13: =Johnson!$I$34 -> 4.4 | S13: =Johnson!$M$34 -> 0 | T13: =Johnson!$K$56 -> 5.1 | U13: =Johnson!$G$44 -> 6.4 | V13: =Johnson!$I$44 -> 6.4 | W13: =Johnson!$M$44 -> 0 | X13: =Johnson!$M$56 -> 6.4 | Y13: =Johnson!$O$56 -> 21.85 | Z13: =Johnson!$C$1 -> Johnson | AA13: =Johnson!$Q$56 -> 0
B14: 9 | C14: =Johnson!$E$55 -> Mariana Urbina | D14: V1 | E14: =Johnson!$G$8 -> 6.9 | F14: =Johnson!$I$8 -> 6.9 | G14: =Johnson!$O$8 -> 0 | H14: V2 | I14: =Johnson!$G$9 -> 6.5 | J14: =Johnson!$I$9 -> 6.5 | K14: =Johnson!$M$23 -> 0 | L14: =Johnson!$M$8 -> 6.9 | M14: =Johnson!$G$23 -> 3.7 | N14: =Johnson!$I$23 -> 3.7 | O14: =Johnson!$M$23 -> 0 | P14: =Johnson!$I$55 -> 4.1 | Q14: =Johnson!$G$33 -> 4 | R14: =Johnson!$I$33 -> 4 | S14: =Johnson!$M$33 -> 0 | T14: =Johnson!$K$55 -> 4.4 | U14: =Johnson!$G$43 -> 6 | V14: =Johnson!$I$43 -> 6 | W14: =Johnson!$M$43 -> 0 | X14: =Johnson!$M$55 -> 6.3 | Y14: =Johnson!$O$55 -> 21.65 | Z14: =Johnson!$C$1 -> Johnson | AA14: =Johnson!$Q$55 -> 0
B15: 10 | C15: =Como!$E$55 -> Amelia Christ | D15: V1 | E15: =Como!$G$8 -> 3.8 | F15: =Como!$I$8 -> 3.8 | G15: =Como!$O$8 -> 0 | H15: V2 | I15: =Como!$G$9 -> 5.8 | J15: =Como!$I$9 -> 5.8 | K15: =Como!$M$23 -> 0 | L15: =Como!$M$8 -> 5.8 | M15: =Como!$G$23 -> 2.2 | N15: =Como!$I$23 -> 2.2 | O15: =Como!$M$23 -> 0 | P15: =Como!$I$55 -> 6.5 | Q15: =Como!$G$33 -> 3 | R15: =Como!$I$33 -> 3 | S15: =Como!$M$33 -> 0 | T15: =Como!$K$55 -> 7.15 | U15: =Como!$G$43 -> 4 | V15: =Como!$I$43 -> 4 | W15: =Como!$M$43 -> 0 | X15: =Como!$M$55 -> 7.6 | Y15: =Como!$O$55 -> 21.25 | Z15: =Como!$C$1 -> Como | AA15: =Como!$Q$55 -> 0
B16: 11 | C16: =Highland!$E$59 -> 0 | D16: V1 | E16: =Highland!$G$16 -> 9.6 | F16: =Highland!$I$16 -> 9.6 | G16: =Highland!$O$16 -> 0 | H16: V2 | I16: =Highland!$G$17 -> 9.6 | J16: =Highland!$I$17 -> 9.6 | K16: =Highland!$M$27 -> 0 | L16: =Highland!$M$16 -> 9.6 | M16: =Highland!$G$27 -> 8.5 | N16: =Highland!$I$27 -> 8.5 | O16: =Highland!$M$27 -> 0 | P16: =Highland!$I$59 -> check name spelling | Q16: =Highland!$G$37 -> 9 | R16: =Highland!$I$37 -> 9 | S16: =Highland!$M$37 -> 0 | T16: =Highland!$K$59 -> check name spelling | U16: =Highland!$G$47 -> 9.45 | V16: =Highland!$I$47 -> 9.45 | W16: =Highland!$M$47 -> 0 | X16: =Highland!$M$59 -> check name spelling | Y16: =Highland!$O$59 -> 0 | Z16: =Highland!$C$1 -> Highland | AA16: =Highland!$Q$59 -> 0
B17: 12 | C17: =Central!$E$57 -> 0 | D17: V1 | E17: =Central!$G$12 -> 8.2 | F17: =Central!$I$12 -> 8.2 | G17: =Central!$O$12 -> 0 | H17: V2 | I17: =Central!$G$13 -> 7.95 | J17: =Central!$I$13 -> 7.95 | K17: =Central!$M$25 -> 0 | L17: =Central!$M$12 -> 8.2 | M17: =Central!$G$25 -> 6.65 | N17: =Central!$I$25 -> 6.65 | O17: =Central!$M$25 -> 0 | P17: =Central!$I$57 -> check name spelling | Q17: =Central!$G$35 -> 7.35 | R17: =Central!$I$35 -> 7.35 | S17: =Central!$M$35 -> 0 | T17: =Central!$K$57 -> check name spelling | U17: =Central!$G$45 -> 7.9 | V17: =Central!$I$45 -> 7.9 | W17: =Central!$M$45 -> 0 | X17: =Central!$M$57 -> check name spelling | Y17: =Central!$O$57 -> 0 | Z17: =Central!$C$1 -> Central | AA17: =Central!$Q$57 -> 0
B18: 13 | C18: =Central!$E$58 -> 0 | D18: V1 | E18: =Central!$G$14 -> 8.3 | F18: =Central!$I$14 -> 8.3 | G18: =Central!$O$14 -> 0 | H18: V2 | I18: =Central!$G$15 -> 8.35 | J18: =Central!$I$15 -> 8.35 | K18: =Central!$M$26 -> 0 | L18: =Central!$M$14 -> 8.35 | M18: =Central!$G$26 -> 6.4 | N18: =Central!$I$26 -> 6.4 | O18: =Central!$M$26 -> 0 | P18: =Central!$I$58 -> check name spelling | Q18: =Central!$G$36 -> 7.3 | R18: =Central!$I$36 -> 7.3 | S18: =Central!$M$36 -> 0 | T18: =Central!$K$58 -> check name spelling | U18: =Central!$G$46 -> 8.3 | V18: =Central!$I$46 -> 8.3 | W18: =Central!$M$46 -> 0 | X18: =Central!$M$58 -> check name spelling | Y18: =Central!$O$58 -> 0 | Z18: =Central!$C$1 -> Central | AA18: =Central!$Q$58 -> 0
B19: 14 | C19: =Central!$E$59 -> 0 | D19: V1 | E19: =Central!$G$16 -> 8.2 | F19: =Central!$I$16 -> 8.2 | G19: =Central!$O$16 -> 0 | H19: V2 | I19: =Central!$G$17 -> 7.75 | J19: =Central!$I$17 -> 7.75 | K19: =Central!$M$27 -> 0 | L19: =Central!$M$16 -> 8.2 | M19: =Central!$G$27 -> 7.5 | N19: =Central!$I$27 -> 7.5 | O19: =Central!$M$27 -> 0 | P19: =Central!$I$59 -> check name spelling | Q19: =Central!$G$37 -> 7.05 | R19: =Central!$I$37 -> 7.05 | S19: =Central!$M$37 -> 0 | T19: =Central!$K$59 -> check name spelling | U19: =Central!$G$47 -> 8.9 | V19: =Central!$I$47 -> 8.9 | W19: =Central!$M$47 -> 0 | X19: =Central!$M$59 -> check name spelling | Y19: =Central!$O$59 -> 0 | Z19: =Central!$C$1 -> Central | AA19: =Central!$Q$59 -> 0
B20: 15 | C20: =Johnson!$E$58 -> 0 | D20: V1 | E20: =Johnson!$G$14 -> 6.5 | F20: =Johnson!$I$14 -> 6.5 | G20: =Johnson!$O$14 -> 0 | H20: V2 | I20: =Johnson!$G$15 -> 6.5 | J20: =Johnson!$I$15 -> 6.5 | K20: =Johnson!$M$26 -> 0 | L20: =Johnson!$M$14 -> 6.5 | M20: =Johnson!$G$26 -> 3.9 | N20: =Johnson!$I$26 -> 3.9 | O20: =Johnson!$M$26 -> 0 | P20: =Johnson!$I$58 -> check name spelling | Q20: =Johnson!$G$36 -> 5.75 | R20: =Johnson!$I$36 -> 5.75 | S20: =Johnson!$M$36 -> 0 | T20: =Johnson!$K$58 -> check name spelling | U20: =Johnson!$G$46 -> 7.2 | V20: =Johnson!$I$46 -> 7.2 | W20: =Johnson!$M$46 -> 0 | X20: =Johnson!$M$58 -> check name spelling | Y20: =Johnson!$O$58 -> 0 | Z20: =Johnson!$C$1 -> Johnson | AA20: =Johnson!$Q$58 -> 0
B21: 16 | C21: =Johnson!$E$59 -> 0 | D21: V1 | E21: =Johnson!$G$16 -> 6.6 | F21: =Johnson!$I$16 -> 6.6 | G21: =Johnson!$O$16 -> 0 | H21: V2 | I21: =Johnson!$G$17 -> 6.8 | J21: =Johnson!$I$17 -> 6.8 | K21: =Johnson!$M$27 -> 0 | L21: =Johnson!$M$16 -> 6.8 | M21: =Johnson!$G$27 -> 6.9 | N21: =Johnson!$I$27 -> 6.9 | O21: =Johnson!$M$27 -> 0 | P21: =Johnson!$I$59 -> check name spelling | Q21: =Johnson!$G$37 -> 4.7 | R21: =Johnson!$I$37 -> 4.7 | S21: =Johnson!$M$37 -> 0 | T21: =Johnson!$K$59 -> check name spelling | U21: =Johnson!$G$47 -> 7 | V21: =Johnson!$I$47 -> 7 | W21: =Johnson!$M$47 -> 0 | X21: =Johnson!$M$59 -> check name spelling | Y21: =Johnson!$O$59 -> 0 | Z21: =Johnson!$C$1 -> Johnson | AA21: =Johnson!$Q$59 -> 0
B22: 17 | C22: =Como!$E$56 -> 0 | D22: V1 | E22: =Como!$G$10 -> 5.1 | F22: =Como!$I$10 -> 5.1 | G22: =Como!$O$10 -> 0 | H22: V2 | I22: =Como!$G$11 -> 6.1 | J22: =Como!$I$11 -> 6.1 | K22: =Como!$M$24 -> 0 | L22: =Como!$M$10 -> 6.1 | M22: =Como!$G$24 -> 2.7 | N22: =Como!$I$24 -> 2.7 | O22: =Como!$M$24 -> 0 | P22: =Como!$I$56 -> 0 | Q22: =Como!$G$34 -> 2.3 | R22: =Como!$I$34 -> 2.3 | S22: =Como!$M$34 -> 0 | T22: =Como!$K$56 -> check name spelling | U22: =Como!$G$44 -> 5.7 | V22: =Como!$I$44 -> 5.7 | W22: =Como!$M$44 -> 0 | X22: =Como!$M$56 -> check name spelling | Y22: =Como!$O$56 -> 0 | Z22: =Como!$C$1 -> Como | AA22: =Como!$Q$56 -> 0
B23: 18 | C23: =Como!$E$57 -> 0 | D23: V1 | E23: =Como!$G$12 -> 6.35 | F23: =Como!$I$12 -> 6.35 | G23: =Como!$O$12 -> 0 | H23: V2 | I23: =Como!$G$13 -> 6.2 | J23: =Como!$I$13 -> 6.2 | K23: =Como!$M$25 -> 0 | L23: =Como!$M$12 -> 6.35 | M23: =Como!$G$25 -> 3.3 | N23: =Como!$I$25 -> 3.3 | O23: =Como!$M$25 -> 0 | P23: =Como!$I$57 -> 0 | Q23: =Como!$G$35 -> 3.6 | R23: =Como!$I$35 -> 3.6 | S23: =Como!$M$35 -> 0 | T23: =Como!$K$57 -> check name spelling | U23: =Como!$G$45 -> 4.7 | V23: =Como!$I$45 -> 4.7 | W23: =Como!$M$45 -> 0 | X23: =Como!$M$57 -> check name spelling | Y23: =Como!$O$57 -> 0 | Z23: =Como!$C$1 -> Como | AA23: =Como!$Q$57 -> 0
B24: 19 | C24: =Como!$E$58 -> 0 | D24: V1 | E24: =Como!$G$14 -> 8.3 | F24: =Como!$I$14 -> 8.3 | G24: =Como!$O$14 -> 0 | H24: V2 | I24: =Como!$G$15 -> 6.9 | J24: =Como!$I$15 -> 6.9 | K24: =Como!$M$26 -> 0 | L24: =Como!$M$14 -> 8.3 | M24: =Como!$G$26 -> 6.5 | N24: =Como!$I$26 -> 6.5 | O24: =Como!$M$26 -> 0 | P24: =Como!$I$58 -> 0 | Q24: =Como!$G$36 -> 4.9 | R24: =Como!$I$36 -> 4.9 | S24: =Como!$M$36 -> 0 | T24: =Como!$K$58 -> check name spelling | U24: =Como!$G$46 -> 5.9 | V24: =Como!$I$46 -> 5.9 | W24: =Como!$M$46 -> 0 | X24: =Como!$M$58 -> check name spelling | Y24: =Como!$O$58 -> 0 | Z24: =Como!$C$1 -> Como | AA24: =Como!$Q$58 -> 0
B25: 20 | C25: =Como!$E$59 -> 0 | D25: V1 | E25: =Como!$G$16 -> 0 | F25: =Como!$I$16 -> 0 | G25: =Como!$O$16 -> 0 | H25: V2 | I25: =Como!$G$17 -> 0 | J25: =Como!$I$17 -> 0 | K25: =Como!$M$27 -> 0 | L25: =Como!$M$16 -> 0 | M25: =Como!$G$27 -> 0 | N25: =Como!$I$27 -> 0 | O25: =Como!$M$27 -> 0 | P25: =Como!$I$59 -> 0 | Q25: =Como!$G$37 -> 7.15 | R25: =Como!$I$37 -> 7.15 | S25: =Como!$M$37 -> 0 | T25: =Como!$K$59 -> check name spelling | U25: =Como!$G$47 -> 7.6 | V25: =Como!$I$47 -> 7.6 | W25: =Como!$M$47 -> 0 | X25: =Como!$M$59 -> check name spelling | Y25: =Como!$O$59 -> 0 | Z25: =Como!$C$1 -> Como | AA25: =Como!$Q$59 -> 0

Sheet Team
B1: Team Places
B2: ='START HERE'!A22 -> St. Paul Varsity Competition
B3: ='START HERE'!A23 -> Feb. 6th, 2019
B5: Place | C5: Vault Score | D5: Bars Score | E5: Beam Score | F5: Floor Score | G5: Team Total | H5: Team
B6: 1 | C6: =Highland!$M$19 -> 35.25 | D6: =Highland!$K$29 -> 32.35 | E6: =Highland!$K$39 -> 33.55 | F6: =Highland!$K$49 -> 35.4 | G6: =Highland!$K$51 -> 136.55 | H6: =Highland!$C$1 -> Highland
B7: 2 | C7: =Central!$M$19 -> 33.2 | D7: =Central!$K$29 -> 27.35 | E7: =Central!$K$39 -> 29.05 | F7: =Central!$K$49 -> 33.2 | G7: =Central!$K$51 -> 122.8 | H7: =Central!$C$1 -> Central
B8: 3 | C8: =Johnson!$M$19 -> 27.15 | D8: =Johnson!$K$29 -> 18.75 | E8: =Johnson!$K$39 -> 19.95 | F8: =Johnson!$K$49 -> 26.9 | G8: =Johnson!$K$51 -> 92.75 | H8: =Johnson!$C$1 -> Johnson
B9: 4 | C9: =Como!$M$19 -> 26.55 | D9: =Como!$K$29 -> 14.7 | E9: =Como!$K$39 -> 18.65 | F9: =Como!$K$49 -> 23.9 | G9: =Como!$K$51 -> 83.8 | H9: =Como!$C$1 -> Como

Sheet EULA
